Workbook

Sheet Print

Sheet Title Page

Sheet i
A1: THE HANOVER INSURANCE GROUP
A2: FINANCIAL SUPPLEMENT
B7: TABLE OF CONTENTS
B10: Business Description.......................................................................................... | C10: 1
B11: Financial Highlights.......................................................................................... | C11: 2
B12: Consolidated Financial Statements
B13: Income Statements.......................................................................................... | C13: 3
B14: Balance Sheets.................................................................................................. | C14: 4
B15: GAAP Underwriting Results
B16: Consolidated.............................................................................................. | C16: 5-7
B17: Commercial Lines.............................................................................................. | C17: 8-10
B18: Personal Lines.............................................................................................. | C18: 11-13
B19: Chaucer.............................................................................................................. | C19: 14-16
B20: Investments
B21: Net Investment Income and Yields.................................................................................. | C21: 17
B22: Investment Portfolio.......................................................................................... | C22: 18
B23: Credit Quality and Duration of Fixed Maturities.................................................................................................. | C23: 19
B24: Top 10 Corporate and Municipal Fixed Maturity Holdings.................................................................................................. | C24: 20
B25: Reconciliation of Operating Income (Loss) to Net Income (Loss) .......................................................................................... | C25: 21
B26: Other Information
B27: Non-GAAP Financial Measures.............................................................................................. | C27: 22
B28: Corporate Information.............................................................................................. | C28: 23
B29: Market and Dividend Information.............................................................................................. | C29: 23
B30: Financial Strength and Debt Ratings.............................................................................................. | C30: 23

Sheet 1
A1: THE HANOVER INSURANCE GROUP
A3: BASIS OF PRESENTATION
A6: BUSINESS DESCRIPTIONS
A8: COMMERCIAL LINES
A10: Commercial multiple peril coverage insures businesses against third party liability from accidents occurring on their premises or arising out of their operations, such as injuries sustained from products sold. It also insures business property for damage, such as that caused by fire, wind, hail, water damage (except for flooding), theft and vandalism.
A12: Commercial automobile coverage insures businesses against losses incurred from personal bodily injury, bodily injury to third parties, property damage to an insured’s vehicle, and property damage to other vehicles and property.
A14: Workers’ compensation coverage insures employers against employee medical and indemnity claims resulting from injuries related to work. Workers’ compensation policies are often written in conjunction with other commercial policies.
A16: Other Commercial Lines is comprised of inland marine, which insures businesses against physical losses to property, such as contractor’s equipment, builders’ risk and goods in transit. We also offer underwriting and managing of program business, including to under-served markets where there are specialty coverage or risk management needs. Other Commercial Lines also includes bonds, which provides businesses with contract surety coverage in the event of performance or payment claims, and commercial surety coverage related to fiduciary or regulatory obligations. Also included in Other Commercial Lines coverages are umbrella, general liability, fire, specialty property, and professional and management liability.
A18: PERSONAL LINES
A20: Personal automobile coverage insures individuals against losses incurred from personal bodily injury, bodily injury to third parties, property damage to an insured’s vehicle, and property damage to other vehicles and other property.
A22: Homeowners coverage insures individuals for losses to their residences and personal property, such as those caused by fire, wind, hail, water damage (except for flooding), theft and vandalism, and against third party liability claims.
A24: Other Personal Lines are comprised of personal inland marine (jewelry, art, etc.), umbrella, fire, personal watercraft, earthquake and other miscellaneous coverages.
A26: CHAUCER
A28: The Chaucer reporting segment represents THG's international business written through Lloyd's and includes international property, marine and aviation, energy, UK motor and international casualty and other coverages.
A30: Property coverage, including direct, facultative and treaty property accounts, insures property, including commercial, auto, and industrial businesses, against physical loss or damage and business interruption. The property treaty account comprises mainly catastrophe and per risk excess contract acceptances, with a small amount of proportional treaty and reinsurance assumed business.
A32: Marine and Aviation includes coverages that insure marine hull, excess of loss, liability, cargo and specie, in addition to political risk, war, and satellite business coverages. It also includes aviation coverages that insure airline hull and liability, general aviation and refuellers and products.
A34: Energy coverage, encompassing exploration and production, construction, liabilities downstream and renewables, insures energy businesses against physical damage, business interruption, control of well, seepage and pollution and liabilities. Energy also includes Nuclear, which predominantly provides coverage relating to power generation at nuclear power stations.
A36: UK Motor coverage insures the UK private car and fleet markets. In addition, it writes specialist classes including commercial vehicle, taxi, motorcycle, motor trade and classic/specialist vehicles, as well as other UK small commercial products.
A38: Casualty and Other Lines includes coverages that insure financial institutions crime and professional indemnity, medical malpractice, workers' compensation and professional, managerial and general liability, as well as syndicate participations.
A40: OTHER
A42: Included in Other are Opus, which provides investment advisory services to affiliates and also manages assets for unaffiliated institutions such as insurance companies, retirement plans and foundations; earnings on holding company assets; and voluntary pools business which is in run-off.

Sheet 2
A1: THE HANOVER INSURANCE GROUP
A2: FINANCIAL HIGHLIGHTS
C5: Q4 | E5: Q1 | G5: Q2 | I5: Q3 | K5: Q4 | M5: Dec-YTD | O5: Dec-YTD
A6: (In millions, except earnings per share) | C6: 2013 | E6: 2014 | G6: 2014 | I6: 2014 | K6: 2014 | M6: 2013 | O6: 2014
A7: PREMIUMS
A8: Gross premiums written | C8: 1175400000 | E8: 1408100000 | G8: 1423600000 | I8: 1388200000 | K8: 1245500000 | M8: 5201700000 | O8: 5465400000
A10: Net premiums written | C10: 1051500000 | E10: 1172300000 | G10: 1276200000 | I10: 1244800000 | K10: 1116800000 | M10: 4552700000 | O10: 4810100000
A12: Net premiums earned | C12: 1140700000 | E12: 1163000000 | G12: 1174700000 | I12: 1184000000 | K12: 1188600000 | M12: 4450500000 | O12: 4710300000
A14: EARNINGS
A15: Operating income before interest and taxes | C15: 102900000 | E15: 85000000 | G15: 102200000 | I15: 86400000 | K15: 132600000 | M15: 393400000 | O15: 406200000
A16: Operating income after taxes | C16: 59600000 | E16: 47000000 | G16: 58400000 | I16: 47700000 | K16: 79600000 | M16: 227200000 | O16: 232700000
A18: Income from continuing operations | C18: 64900000 | E18: 54700000 | G18: 82500000 | I18: 55000000 | K18: 90100000 | M18: 245700000 | O18: 282300000
A20: Net income | C20: 70100000 | E20: 54600000 | G20: 82600000 | H20: -100000 | I20: 54900000 | K20: 89900000 | M20: 251000000 | O20: 282000000
A22: PER SHARE DATA (DILUTED)
A24: Operating income after taxes | C24: 1330000 | E24: 1050000 | G24: 1300000 | I24: 1060000 | K24: 1770000 | M24: 5060000 | O24: 5190000
A26: Income from continuing operations | C26: 1.45 | E26: 1.22 | G26: 1.84 | I26: 1.22 | K26: 2.01 | M26: 5.47 | O26: 6.29
A28: Net income | C28: 1.57 | E28: 1.22 | G28: 1.84 | I28: 1.22 | K28: 2 | M28: 5.59 | O28: 6.28
A30: Weighted average shares outstanding | C30: 44800000 | E30: 44800000 | G30: 44900000 | I30: 44900000 | K30: 45000000 | M30: 44900000 | O30: 44900000
A34: BALANCE SHEET
C35: December 31 | E35: March 31 | G35: June 30 | I35: September 30 | K35: December 31
A36: (In millions, except per share data) | C36: 2013 | E36: 2014 | G36: 2014 | I36: 2014 | K36: 2014
A38: Total assets | C38: 13378700000 | E38: 13643000000 | G38: 13964800000 | I38: 13960200000 | K38: 13759700000
A39: Total loss and loss adjustment expense reserves | C39: 6231500000 | E39: 6323400000 | G39: 6448000000 | I39: 6435000000 | K39: 6391700000
A40: Total shareholders' equity | C40: 2594500000 | E40: 2681100000 | G40: 2795100000 | I40: 2771900000 | K40: 2844000000
A42: U.S. Property and Casualty Companies
A43: Statutory surplus | C43: 1834.3 | E43: 1900.4 | G43: 1974.9 | I43: 1998.6 | K43: 2052
A44: Premium to surplus ratio | C44: 1.87:1 | E44: 1.83: 1 | G44: 1.77:1 | I44: 1.77:1 | K44: 1.75:1
A46: Book value per share | C46: 59430000 | E46: 61240000 | G46: 63650000 | I46: 63370000 | K46: 64850000
A47: Book value per share, excluding net unrealized
A48: investment gains and losses, net of tax | C48: 56070000 | E48: 56700000 | G48: 58160000 | I48: 59040000 | K48: 60070000
A49: Tangible book value per share (total book value
A50: excluding goodwill and intangibles) | C50: 52220000 | E50: 54060000 | G50: 56470000 | I50: 56300000 | K50: 57910000
A52: Shares outstanding | C52: 43700000 | E52: 43800000 | G52: 43900000 | I52: 43700000 | K52: 43900000
A54: Total debt/equity | C54: 0.348 | E54: 0.337 | G54: 0.323 | I54: 0.326 | K54: 0.318
A55: Total debt/total capital | C55: 0.258 | E55: 0.252 | G55: 0.244 | I55: 0.246 | K55: 0.241

Sheet 3
A1: THE HANOVER INSURANCE GROUP
A2: CONSOLIDATED INCOME STATEMENTS
C6: Three Months ended December 31 | I6: Year ended December 31
A7: (In millions) | C7: 2014 | E7: 2013 | G7: % Change | I7: 2014 | K7: 2013 | M7: % Change
A9: REVENUES
A10: Premiums earned | C10: 1188600000 | E10: 1140700000 | G10: 4.2 | I10: 4710300000 | K10: 4450500000 | M10: 5.8
A11: Net investment income | C11: 68800000 | E11: 68100000 | G11: 1 | I11: 270300000 | K11: 269000000 | M11: 0.5
A12: Net realized investment gains | C12: 18600000 | E12: 10700000 | G12: 73.8 | I12: 50100000 | K12: 33500000 | M12: 49.6
A13: Fees and other income | C13: 9100000 | E13: 9500000 | G13: -4.2 | I13: 36900000 | K13: 40700000 | M13: -9.3
A14: Total revenues | C14: 1285100000 | E14: 1229000000 | G14: 4.6 | I14: 5067600000 | K14: 4793700000 | M14: 5.7
A16: LOSSES AND EXPENSES
A17: Losses and loss adjustment expenses | C17: 695900000 | E17: 689700000 | G17: 0.9 | I17: 2927500000 | K17: 2761100000 | M17: 6
A18: Amortization of deferred acquisition costs | C18: 266700000 | E18: 251900000 | G18: 5.9 | I18: 1040000000 | K18: 971000000 | M18: 7.1
A19: Interest expense | C19: 16300000 | E19: 16600000 | G19: -1.8 | I19: 65200000 | K19: 65300000 | M19: -0.2
A20: Other operating expenses | C20: 183300000 | E20: 182600000 | G20: 0.4 | I20: 656900000 | K20: 667200000 | M20: -1.5
A21: Total losses and expenses | C21: 1162200000 | E21: 1140800000 | G21: 1.9 | I21: 4689600000 | K21: 4464600000 | M21: 5
A24: Income from continuing operations before income taxes | C24: 122900000 | E24: 88200000 | G24: 39.3 | I24: 378000000 | K24: 329100000 | M24: 14.9
A25: Income tax expense | C25: 32800000 | E25: 23300000 | G25: 40.8 | I25: 95700000 | K25: 83400000 | M25: 14.7
A27: Income from continuing operations | C27: 90100000 | E27: 64900000 | G27: 38.8 | I27: 282300000 | K27: 245700000 | M27: 14.9
G28: -
A29: Discontinued operations | C29: -200000 | E29: 5200000 | G29: N/M | I29: -300000 | K29: 5300000 | M29: N/M
A31: Net income | C31: 89900000 | E31: 70100000 | G31: 28.2 | I31: 282000000 | K31: 251000000 | M31: 12.4

Sheet 4
A1: THE HANOVER INSURANCE GROUP
A2: CONSOLIDATED BALANCE SHEETS
C6: December 31 | E6: December 31
A7: (In millions, except per share data) | C7: 2014 | E7: 2013 | G7: % Change
A8: ASSETS
A9: Investments:
A10: Fixed maturities, at fair value (amortized cost of $7,145.7 and $6,815.2) | C10: 7378100000 | E10: 6970600000 | G10: 5.8
A11: Equity securities, at fair value (cost of $506.6 and $366.5) | C11: 580800000 | E11: 430200000 | G11: 35
A12: Other investments | C12: 291400000 | E12: 192500000 | G12: 51.4
A13: Total investments | C13: 8250300000 | E13: 7593300000 | G13: 8.7
A14: Cash and cash equivalents | C14: 373300000 | E14: 486200000 | G14: -23.2
A15: Accrued investment income | C15: 66900000 | E15: 68000000 | G15: -1.6
A16: Premiums and accounts receivable, net | C16: 1360900000 | E16: 1324600000 | G16: 2.7
A17: Reinsurance recoverable on paid and unpaid losses and unearned premiums | C17: 2268200000 | E17: 2335000000 | G17: -2.9
A18: Deferred acquistion costs | C18: 525700000 | E18: 506000000 | G18: 3.9
A19: Deferred income taxes | C19: 131200000 | E19: 239700000 | G19: -45.3
A20: Goodwill | C20: 184600000 | E20: 184900000 | G20: -0.2
A21: Other assets | C21: 486600000 | E21: 526100000 | G21: -7.5
A22: Assets of discontinued operations | C22: 112000000 | E22: 114900000 | G22: -2.5
A23: Total assets | C23: 13759700000 | E23: 13378700000 | G23: 2.8
A25: LIABILITIES AND SHAREHOLDERS' EQUITY
A27: LIABILITIES
A28: Loss and loss adjustment expense reserves | C28: 6391700000 | E28: 6231500000 | G28: 2.6
A29: Unearned premiums | C29: 2583900000 | E29: 2515800000 | G29: 2.7
A30: Expenses and taxes payable | C30: 695400000 | E30: 637200000 | G30: 9.1
A31: Reinsurance premiums payable | C31: 226800000 | E31: 374700000 | G31: -39.5
A32: Debt | C32: 903500000 | E32: 903900000 | G32: 0
A33: Liabilities of discontinued operations | C33: 114400000 | E33: 121100000 | G33: -5.5
A34: Total liabilities | C34: 10915700000 | E34: 10784200000 | G34: 1.2
A36: SHAREHOLDERS' EQUITY
A37: Preferred stock, par value $0.01 per share;
A38: 20.0 million shares authorized; none issued | C38: 0 | E38: 0 | G38: -
A39: Common stock, par value $0.01 per share; 300.0 million shares
A40: authorized; 60.5 million shares issued | C40: 600000 | E40: 600000 | G40: -
A41: Additional paid-in capital | C41: 1830700000 | E41: 1830100000 | G41: 0.03
A42: Accumulated other comprehensive income | C42: 206400000 | E42: 177600000 | G42: 16.2
A43: Retained earnings | C43: 1558700000 | E43: 1349100000 | G43: 15.5
A44: Treasury stock at cost (16.6 and 16.8 million shares) | C44: -752400000 | E44: -762900000 | G44: -1.4
A45: Total shareholders' equity | C45: 2844000000 | E45: 2594500000 | G45: 9.6
A46: Total liabilities and shareholders' equity | C46: 13759700000 | E46: 13378700000 | G46: 2.8

Sheet 5
A1: THE HANOVER INSURANCE GROUP
A2: GAAP UNDERWRITING AND OPERATING INCOME INFORMATION AND RATIOS
A4: CONSOLIDATED
A6: Three Months ended December 31
D10: 2014 | N10: 2013
D13: Commercial | F13: Personal | N13: Commercial | P13: Personal
A14: (In millions, except percentage data) | D14: Lines | F14: Lines | H14: Chaucer | J14: Other | L14: Total | N14: Lines | P14: Lines | R14: Chaucer | T14: Other | V14: Total
B17: Gross premiums written | D17: 575700000 | F17: 376500000 | H17: 293300000 | J17: 0 | L17: 1245500000 | N17: 541800000 | P17: 368200000 | R17: 265400000 | T17: 0 | V17: 1175400000
B19: Net premiums written | D19: 499000000 | F19: 353700000 | H19: 264100000 | J19: 0 | L19: 1116800000 | N19: 471600000 | P19: 342900000 | R19: 237000000 | T19: 0 | V19: 1051500000
B21: Net premiums earned | D21: 529200000 | F21: 353600000 | H21: 305800000 | J21: 0 | L21: 1188600000 | N21: 503300000 | P21: 355300000 | R21: 282100000 | T21: 0 | V21: 1140700000
B23: Losses and LAE:
B25: Current accident year, excluding catastrophe losses | D25: 311800000 | F25: 214100000 | H25: 177000000 | J25: 0 | L25: 702900000 | N25: 300200000 | P25: 221200000 | R25: 159200000 | T25: 100000 | V25: 680700000
B27: Prior year unfavorable (favorable) reserve development | D27: 5700000 | F27: -1200000 | H27: -33200000 | J27: 400000 | L27: -28300000 | N27: 300000 | P27: 3200000 | R27: -22800000 | T27: 400000 | V27: -18900000
B29: Catastrophe losses | D29: 10200000 | F29: 9200000 | H29: 1900000 | J29: 0 | L29: 21300000 | N29: 7700000 | P29: 12700000 | R29: 7500000 | T29: 0 | V29: 27900000
B31: Total losses and LAE | D31: 327700000 | F31: 222100000 | H31: 145700000 | J31: 400000 | L31: 695900000 | N31: 308200000 | P31: 237100000 | R31: 143900000 | T31: 500000 | V31: 689700000
B33: Amortization of deferred acquisition costs and other underwriting expenses | D33: 201700000 | F33: 102700000 | H33: 123600000 | J33: 600000 | L33: 428600000 | N33: 196300000 | P33: 108400000 | R33: 109000000 | T33: 600000 | V33: 414300000
J34: 0
B35: GAAP underwriting profit (loss) | D35: -200000 | F35: 28800000 | H35: 36500000 | J35: -1000000 | L35: 64100000 | N35: -1200000 | P35: 9800000 | R35: 29200000 | T35: -1100000 | V35: 36700000
B37: Net investment income | D37: 37500000 | F37: 18000000 | H37: 12000000 | J37: 1300000 | L37: 68800000 | N37: 36100000 | P37: 19100000 | R37: 11300000 | T37: 1600000 | V37: 68100000
X38: q
B39: Other income | D39: 2000000 | F39: 3100000 | H39: 3200000 | J39: 800000 | L39: 9100000 | N39: 1700000 | P39: 3000000 | R39: 4000000 | T39: 800000 | V39: 9500000
B41: Other operating expenses | D41: -2800000 | F41: -1900000 | H41: -800000 | J41: -3900000 | L41: -9400000 | N41: -1900000 | P41: -1400000 | R41: -4300000 | T41: -3800000 | V41: -11400000
B43: Operating income (loss) before income taxes | D43: 36500000 | F43: 48000000 | H43: 50900000 | J43: -2800000 | L43: 132600000 | N43: 34700000 | P43: 30500000 | R43: 40200000 | T43: -2500000 | V43: 102900000
B48: Loss and LAE ratio:
B50: Current accident year, excluding catastrophe losses | D50: 0.589 | F50: 0.605 | H50: 0.58 | J50: N/M | L50: 0.591 | N50: 0.597 | P50: 0.622 | R50: 0.564 | T50: N/M | V50: 0.598
B52: Prior year unfavorable (favorable) reserve development | D52: 0.011 | F52: -0.003 | H52: -0.109 | J52: N/M | L52: -0.024 | N52: 0.001 | P52: 0.009 | R52: -0.081 | T52: N/M | V52: -0.017
B54: Catastrophe losses | D54: 0.019 | F54: 0.026 | H54: 0.006 | J54: N/M | L54: 0.018 | N54: 0.015 | P54: 0.036 | R54: 0.027 | T54: N/M | V54: 0.024
B55: Total loss and LAE ratio | D55: 0.619 | F55: 0.628 | H55: 0.477 | J55: N/M | L55: 0.585 | N55: 0.613 | P55: 0.667 | R55: 0.51 | T55: N/M | V55: 0.605
B57: Expense ratio | D57: 0.379 | F57: 0.283 | H57: 0.404 | J57: N/M | L57: 0.358 | N57: 0.388 | P57: 0.298 | R57: 0.386 | T57: N/M | V57: 0.36
B59: Combined ratio | D59: 0.998 | F59: 0.911 | H59: 0.881 | J59: N/M | L59: 0.943 | N59: 1.001 | P59: 0.965 | R59: 0.896 | T59: N/M | V59: 0.965

Sheet 6
A1: THE HANOVER INSURANCE GROUP
A2: GAAP UNDERWRITING AND OPERATING INCOME INFORMATION AND RATIOS
A4: CONSOLIDATED
A6: Year ended December 31
C10: 2014 | M10: 2013
C13: Commercial | E13: Personal | M13: Commercial | O13: Personal
A14: (In millions, except percentage data) | C14: Lines | E14: Lines | G14: Chaucer | I14: Other | K14: Total | M14: Lines | O14: Lines | Q14: Chaucer | S14: Other | U14: Total
B17: Gross premiums written | C17: 2442500000 | E17: 1517300000 | G17: 1505600000 | I17: 0 | K17: 5465400000 | M17: 2295900000 | O17: 1531600000 | Q17: 1374200000 | S17: 0 | U17: 5201700000
B19: Net premiums written | C19: 2155900000 | E19: 1422800000 | G19: 1231400000 | I19: 0 | K19: 4810100000 | M19: 2007200000 | O19: 1428000000 | Q19: 1117500000 | S19: 0 | U19: 4552700000
B21: Net premiums earned | C21: 2081400000 | E21: 1407100000 | G21: 1221800000 | I21: 0 | K21: 4710300000 | M21: 1958400000 | O21: 1454200000 | Q21: 1037900000 | S21: 0 | U21: 4450500000
B23: Losses and LAE:
B25: Current accident year, excluding catastrophe losses | C25: 1216100000 | E25: 878000000 | G25: 709500000 | I25: 0 | K25: 2803600000 | M25: 1179900000 | O25: 919100000 | Q25: 598400000 | S25: 0 | U25: 2697400000
B27: Prior year unfavorable (favorable) reserve development | C27: 9200000 | E27: -5100000 | G27: -104600000 | I27: 1400000 | K27: -99100000 | M27: 3300000 | O27: 13700000 | Q27: -94600000 | S27: 1300000 | U27: -76300000
B29: Catastrophe losses | C29: 87800000 | E29: 106400000 | G29: 28800000 | I29: 0 | K29: 223000000 | M29: 38700000 | O29: 66900000 | Q29: 34400000 | S29: 0 | U29: 140000000
B31: Total losses and LAE | C31: 1313100000 | E31: 979300000 | G31: 633700000 | I31: 1400000 | K31: 2927500000 | M31: 1221900000 | O31: 999700000 | Q31: 538200000 | S31: 1300000 | U31: 2761100000
B33: Amortization of deferred acquisition costs and other underwriting expenses | C33: 776600000 | E33: 405700000 | G33: 465600000 | I33: 1700000 | K33: 1649600000 | M33: 747500000 | O33: 416900000 | Q33: 392000000 | S33: 2100000 | U33: 1558500000
I34: 0
B35: GAAP underwriting profit (loss) | C35: -8300000 | E35: 22100000 | G35: 122500000 | I35: -3100000 | K35: 133200000 | M35: -11000000 | O35: 37600000 | Q35: 107700000 | S35: -3400000 | U35: 130900000
B37: Net investment income | C37: 149400000 | E37: 71900000 | G37: 44200000 | I37: 4800000 | K37: 270300000 | M37: 143500000 | O37: 75800000 | Q37: 42700000 | S37: 7000000 | U37: 269000000
B39: Other income | C39: 8200000 | E39: 12000000 | G39: 13700000 | I39: 3000000 | K39: 36900000 | M39: 7600000 | O39: 12500000 | Q39: 17600000 | S39: 3000000 | U39: 40700000
B41: Other operating expenses | C41: -9400000 | E41: -7000000 | G41: -2800000 | I41: -15000000 | K41: -34200000 | M41: -7700000 | O41: -7300000 | Q41: -17600000 | S41: -14600000 | U41: -47200000
B43: Operating income (loss) before income taxes | C43: 139900000 | E43: 99000000 | G43: 177600000 | I43: -10300000 | K43: 406200000 | M43: 132400000 | O43: 118600000 | Q43: 150400000 | S43: -8000000 | U43: 393400000
B48: Loss and LAE ratio:
B50: Current accident year, excluding catastrophe losses | C50: 0.585 | E50: 0.624 | G50: 0.581 | I50: N/M | K50: 0.596 | M50: 0.602 | O50: 0.633 | Q50: 0.576 | S50: N/M | U50: 0.606
B52: Prior year unfavorable (favorable) reserve development | C52: 0.004 | E52: -0.004 | G52: -0.086 | I52: N/M | K52: -0.021 | M52: 0.002 | O52: 0.009 | Q52: -0.091 | S52: N/M | U52: -0.017
B54: Catastrophe losses | C54: 0.042 | E54: 0.076 | G54: 0.024 | I54: N/M | K54: 0.047 | M54: 0.02 | O54: 0.046 | Q54: 0.033 | S54: N/M | U54: 0.031
B55: Total loss and LAE ratio | C55: 0.631 | E55: 0.696 | G55: 0.519 | I55: N/M | K55: 0.622 | M55: 0.624 | O55: 0.688 | Q55: 0.518 | S55: N/M | U55: 0.62
B57: Expense ratio | C57: 0.371 | E57: 0.281 | G57: 0.381 | I57: N/M | K57: 0.347 | M57: 0.38 | O57: 0.279 | Q57: 0.378 | S57: N/M | U57: 0.347
B59: Combined ratio | C59: 1.002 | E59: 0.977 | G59: 0.9 | I59: N/M | K59: 0.969 | M59: 1.004 | O59: 0.967 | Q59: 0.896 | S59: N/M | U59: 0.967

Sheet 7
A1: THE HANOVER INSURANCE GROUP
A2: GAAP UNDERWRITING INFORMATION AND RELATED RATIOS
A5: CONSOLIDATED
E10: Q4 | G10: Q1 | I10: Q2 | K10: Q3 | M10: Q4 | O10: Dec-YTD | Q10: Dec-YTD
A11: (In millions, except percentage data) | E11: 2013 | G11: 2014 | I11: 2014 | K11: 2014 | M11: 2014 | O11: 2013 | Q11: 2014
B15: Gross premiums written | D15: $ | E15: 1175400000 | F15: $ | G15: 1408100000 | H15: $ | I15: 1423600000 | J15: $ | K15: 1388200000 | L15: $ | M15: 1245500000 | N15: $ | O15: 5201700000 | P15: $ | Q15: 5465400000
B17: Net premiums written | D17: $ | E17: 1051500000 | F17: $ | G17: 1172300000 | H17: $ | I17: 1276200000 | J17: $ | K17: 1244800000 | L17: $ | M17: 1116800000 | N17: $ | O17: 4552700000 | P17: $ | Q17: 4810100000
B19: Net premiums earned | D19: $ | E19: 1140700000 | F19: $ | G19: 1163000000 | H19: $ | I19: 1174700000 | J19: $ | K19: 1184000000 | L19: $ | M19: 1188600000 | N19: $ | O19: 4450500000 | P19: $ | Q19: 4710300000
B21: Losses and LAE:
B23: Current accident year, excluding catastrophe losses | E23: 680700000 | G23: 712300000 | I23: 699000000 | K23: 689400000 | M23: 702900000 | O23: 2697400000 | Q23: 2803600000
B25: Prior year favorable reserve development | E25: -18900000 | G25: -19700000 | I25: -29200000 | K25: -21900000 | M25: -28300000 | O25: -76300000 | Q25: -99100000
B27: Catastrophe losses | E27: 27900000 | G27: 57900000 | I27: 55700000 | K27: 88100000 | M27: 21300000 | O27: 140000000 | Q27: 223000000
B29: Total losses and LAE | E29: 689700000 | G29: 750500000 | I29: 725500000 | K29: 755600000 | M29: 695900000 | O29: 2761100000 | Q29: 2927500000
B31: Amortization of deferred acquisition costs and other underwriting expenses | E31: 414300000 | G31: 395700000 | I31: 414900000 | K31: 410400000 | M31: 428600000 | O31: 1558500000 | Q31: 1649600000
B33: GAAP underwriting profit | D33: $ | E33: 36700000 | F33: $ | G33: 16800000 | H33: $ | I33: 34300000 | J33: $ | K33: 18000000 | L33: $ | M33: 64100000 | N33: $ | O33: 130900000 | P33: $ | Q33: 133200000
B37: Loss and LAE ratio:
B39: Current accident year, excluding catastrophe losses | E39: 0.598 | G39: 0.613 | I39: 0.596 | K39: 0.582 | M39: 0.591 | O39: 0.606 | Q39: 0.596
B41: Prior year favorable reserve development | E41: -0.017 | G41: -0.017 | I41: -0.025 | K41: -0.018 | M41: -0.024 | O41: -0.017 | Q41: -0.021
B43: Catastrophe losses | E43: 0.024 | G43: 0.05 | I43: 0.047 | K43: 0.074 | M43: 0.018 | O43: 0.031 | Q43: 0.047
B45: Total loss and LAE ratio | E45: 0.605 | G45: 0.646 | I45: 0.618 | K45: 0.638 | M45: 0.585 | O45: 0.62 | Q45: 0.622
B47: Expense ratio | E47: 0.36 | G47: 0.337 | I47: 0.35 | K47: 0.344 | M47: 0.358 | O47: 0.347 | Q47: 0.347
B49: Combined ratio | E49: 0.965 | G49: 0.983 | I49: 0.968 | K49: 0.982 | M49: 0.943 | O49: 0.967 | Q49: 0.969
B53: Combined ratio, excluding catastrophe losses | E53: 0.941 | G53: 0.933 | I53: 0.921 | K53: 0.908 | M53: 0.925 | O53: 0.936 | Q53: 0.922
B55: Current accident year combined ratio, excluding
B56: catastrophe losses | E56: 0.958 | G56: 0.95 | I56: 0.946 | K56: 0.926 | M56: 0.949 | O56: 0.953 | Q56: 0.943

Sheet 8
A1: THE HANOVER INSURANCE GROUP
A2: GAAP UNDERWRITING AND OPERATING INCOME INFORMATION AND RATIOS
A4: COMMERCIAL LINES
A6: Three Months ended December 31
C10: 2014 | N10: 2013
D13: Multiple | H13: Workers' | O13: Multiple | S13: Workers'
A14: (In millions, except percentage data) | D14: Peril | F14: Auto | H14: Comp | J14: Other | L14: Total | O14: Peril | Q14: Auto | S14: Comp | U14: Other | W14: Total
B17: Net premiums written | C17: $ | D17: 161000000 | E17: $ | F17: 70700000 | G17: $ | H17: 54200000 | I17: $ | J17: 213100000 | K17: $ | L17: 499000000 | N17: $ | O17: 149000000 | P17: $ | Q17: 74000000 | R17: $ | S17: 53000000 | T17: $ | U17: 195600000 | V17: $ | W17: 471600000
B19: Net premiums earned | C19: $ | D19: 176000000 | E19: $ | F19: 76000000 | G19: $ | H19: 59700000 | I19: $ | J19: 217500000 | K19: $ | L19: 529200000 | N19: $ | O19: 160900000 | P19: $ | Q19: 75900000 | R19: $ | S19: 57800000 | T19: $ | U19: 208700000 | V19: $ | W19: 503300000
B21: Losses and LAE:
B23: Current accident year, excluding catastrophe losses | D23: 90200000 | F23: 54600000 | H23: 40700000 | J23: 126300000 | L23: 311800000 | O23: 85400000 | Q23: 52600000 | S23: 37500000 | U23: 124700000 | W23: 300200000
B25: Prior year unfavorable (favorable) reserve development | D25: -100000 | F25: 4500000 | H25: -1400000 | J25: 2700000 | L25: 5700000 | O25: -2000000 | Q25: 2600000 | S25: -4400000 | U25: 4100000 | W25: 300000
B27: Catastrophe losses | D27: 9600000 | F27: -500000 | H27: 0 | J27: 1100000 | L27: 10200000 | O27: 4300000 | Q27: 100000 | S27: 0 | U27: 3300000 | W27: 7700000
B29: Total losses and LAE | D29: 99700000 | F29: 58600000 | H29: 39300000 | J29: 130100000 | L29: 327700000 | O29: 87700000 | Q29: 55300000 | S29: 33100000 | U29: 132100000 | W29: 308200000
B31: Amortization of deferred acquisition costs and other underwriting expenses | L31: 201700000 | W31: 196300000
B33: GAAP underwriting loss | L33: -200000 | W33: -1200000
B35: Net investment income | L35: 37500000 | W35: 36100000
B37: Other income | L37: 2000000 | W37: 1700000
B39: Other operating expenses | L39: -2800000 | W39: -1900000
B41: Operating income before income taxes | K41: $ | L41: 36500000 | V41: $ | W41: 34700000
S42: .
B46: Loss and LAE ratio:
B48: Current accident year, excluding catastrophe losses | D48: 0.512 | F48: 0.719 | H48: 0.681 | J48: 0.581 | L48: 0.589 | O48: 0.53 | Q48: 0.694 | S48: 0.649 | U48: 0.597 | W48: 0.597
B50: Prior year unfavorable (favorable) reserve development | D50: -0.001 | F50: 0.059 | H50: -0.023 | J50: 0.012 | L50: 0.011 | O50: -0.012 | Q50: 0.034 | S50: -0.076 | U50: 0.02 | W50: 0.001
B52: Catastrophe losses | D52: 0.055 | F52: -0.007 | H52: - | J52: 0.005 | L52: 0.019 | O52: 0.027 | Q52: 0.001 | S52: - | U52: 0.016 | W52: 0.015
B53: Total loss and LAE ratio | D53: 0.566 | F53: 0.771 | H53: 0.658 | J53: 0.598 | L53: 0.619 | O53: 0.545 | Q53: 0.729 | S53: 0.573 | U53: 0.633 | W53: 0.613
B55: Expense ratio | L55: 0.379 | W55: 0.388
B57: Combined ratio | L57: 0.998 | W57: 1.001
B61: Change in policies in force | D61: 0.043 | F61: 0.001 | H61: 0.083 | J61: 0.045 | L61: 0.043 | O61: 0.022 | Q61: 0.063 | S61: 0.14 | U61: 0.009 | W61: 0.036
B63: Retention | D63: 0.839 | F63: 0.798 | H63: 0.794 | J63: N/M | L63: 0.82 | O63: 0.857 | Q63: 0.824 | S63: 0.774 | U63: N/M | W63: 0.838

Sheet 9
A1: THE HANOVER INSURANCE GROUP
A2: GAAP UNDERWRITING AND OPERATING INCOME INFORMATION AND RATIOS
A4: COMMERCIAL LINES
A6: Year ended December 31
C10: 2014 | N10: 2013
D13: Multiple | H13: Workers' | O13: Multiple | S13: Workers'
A14: (In millions, except percentage data) | D14: Peril | F14: Auto | H14: Comp | J14: Other | L14: Total | O14: Peril | Q14: Auto | S14: Comp | U14: Other | W14: Total
B17: Net premiums written | C17: $ | D17: 705100000 | E17: $ | F17: 302600000 | G17: $ | H17: 247800000 | I17: $ | J17: 900400000 | K17: $ | L17: 2155900000 | N17: $ | O17: 651700000 | P17: $ | Q17: 304700000 | R17: $ | S17: 229600000 | T17: $ | U17: 821200000 | V17: $ | W17: 2007200000
B19: Net premiums earned | C19: $ | D19: 685600000 | E19: $ | F19: 302600000 | G19: $ | H19: 238100000 | I19: $ | J19: 855100000 | K19: $ | L19: 2081400000 | N19: $ | O19: 628200000 | P19: $ | Q19: 290800000 | R19: $ | S19: 219600000 | T19: $ | U19: 819800000 | V19: $ | W19: 1958400000
B21: Losses and LAE:
B23: Current accident year, excluding catastrophe losses | D23: 359400000 | F23: 215500000 | H23: 167500000 | J23: 473700000 | L23: 1216100000 | O23: 337600000 | Q23: 205200000 | S23: 151800000 | U23: 485300000 | W23: 1179900000
B25: Prior year unfavorable (favorable) reserve development | D25: -4900000 | F25: 15100000 | H25: -5600000 | J25: 4600000 | L25: 9200000 | O25: -6000000 | Q25: 10500000 | S25: -15400000 | U25: 14200000 | W25: 3300000
B27: Catastrophe losses | D27: 71600000 | F27: 1100000 | H27: 0 | J27: 15100000 | L27: 87800000 | O27: 28800000 | Q27: 700000 | S27: 0 | U27: 9200000 | W27: 38700000
B29: Total losses and LAE | D29: 426100000 | F29: 231700000 | H29: 161900000 | J29: 493400000 | L29: 1313100000 | O29: 360400000 | Q29: 216400000 | S29: 136400000 | U29: 508700000 | W29: 1221900000
B31: Amortization of deferred acquisition costs and other underwriting expenses | L31: 776600000 | W31: 747500000
B33: GAAP underwriting loss | L33: -8300000 | W33: -11000000
B35: Net investment income | L35: 149400000 | W35: 143500000
B37: Other income | L37: 8200000 | W37: 7600000
B39: Other operating expenses | L39: -9400000 | W39: -7700000
B41: Operating income before income taxes | K41: $ | L41: 139900000 | V41: $ | W41: 132400000
B46: Loss and LAE ratio:
B48: Current accident year, excluding catastrophe losses | D48: 0.525 | F48: 0.712 | H48: 0.704 | J48: 0.554 | L48: 0.585 | O48: 0.538 | Q48: 0.706 | S48: 0.691 | U48: 0.593 | W48: 0.602
B50: Prior year unfavorable (favorable) reserve development | D50: -0.007 | F50: 0.05 | H50: -0.024 | J50: 0.005 | L50: 0.004 | O50: -0.01 | Q50: 0.036 | S50: -0.07 | U50: 0.017 | W50: 0.002
B52: Catastrophe losses | D52: 0.104 | F52: 0.004 | H52: - | J52: 0.018 | L52: 0.042 | O52: 0.046 | Q52: 0.002 | S52: - | U52: 0.011 | W52: 0.02
B53: Total loss and LAE ratio | D53: 0.622 | F53: 0.766 | H53: 0.68 | J53: 0.577 | L53: 0.631 | O53: 0.574 | Q53: 0.744 | S53: 0.621 | U53: 0.621 | W53: 0.624
B55: Expense ratio | L55: 0.371 | W55: 0.38
B57: Combined ratio | L57: 1.002 | W57: 1.004
B61: Change in policies in force | D61: 0.043 | F61: 0.001 | H61: 0.083 | J61: 0.045 | L61: 0.043 | O61: 0.022 | Q61: 0.063 | S61: 0.14 | U61: 0.009 | W61: 0.036
B63: Retention | D63: 0.85 | F63: 0.795 | H63: 0.782 | J63: N/M | L63: 0.827 | O63: 0.839 | Q63: 0.807 | S63: 0.782 | U63: N/M | W63: 0.821

Sheet 10
A1: THE HANOVER INSURANCE GROUP
A2: GAAP UNDERWRITING INFORMATION AND RELATED RATIOS
A5: COMMERCIAL LINES
E10: Q4 | G10: Q1 | I10: Q2 | K10: Q3 | M10: Q4 | O10: Dec-YTD | Q10: Dec-YTD
A11: (In millions, except percentage data) | E11: 2013 | G11: 2014 | I11: 2014 | K11: 2014 | M11: 2014 | O11: 2013 | Q11: 2014
B14: Gross premiums written | D14: $ | E14: 541800000 | F14: $ | G14: 597800000 | H14: $ | I14: 613000000 | J14: $ | K14: 656000000 | L14: $ | M14: 575700000 | N14: $ | O14: 2295900000 | P14: $ | Q14: 2442500000
B16: Net premiums written | D16: $ | E16: 471600000 | F16: $ | G16: 539300000 | H16: $ | I16: 541000000 | J16: $ | K16: 576600000 | L16: $ | M16: 499000000 | N16: $ | O16: 2007200000 | P16: $ | Q16: 2155900000
B18: Net premiums earned | D18: $ | E18: 503300000 | F18: $ | G18: 512700000 | H18: $ | I18: 517600000 | J18: $ | K18: 521900000 | L18: $ | M18: 529200000 | N18: $ | O18: 1958400000 | P18: $ | Q18: 2081400000
B20: Losses and LAE:
B22: Current accident year, excluding catastrophe losses | E22: 300200000 | G22: 303600000 | I22: 300800000 | K22: 299900000 | M22: 311800000 | O22: 1179900000 | Q22: 1216100000
P23: 0
B24: Prior year unfavorable reserve development | E24: 300000 | G24: 600000 | I24: 1800000 | K24: 1100000 | M24: 5700000 | O24: 3300000 | Q24: 9200000
B26: Catastrophe losses | E26: 7700000 | G26: 40200000 | I26: 17000000 | K26: 20400000 | M26: 10200000 | O26: 38700000 | Q26: 87800000
B28: Total losses and LAE | E28: 308200000 | G28: 344400000 | I28: 319600000 | K28: 321400000 | M28: 327700000 | O28: 1221900000 | Q28: 1313100000
B30: Amortization of deferred acquisition costs and other underwriting expenses | E30: 196300000 | G30: 189600000 | I30: 190700000 | K30: 194600000 | M30: 201700000 | O30: 747500000 | Q30: 776600000
E31: 0
B32: GAAP underwriting profit (loss) | D32: $ | E32: -1200000 | F32: $ | G32: -21300000 | H32: $ | I32: 7300000 | J32: $ | K32: 5900000 | L32: $ | M32: -200000 | N32: $ | O32: -11000000 | P32: $ | Q32: -8300000
B36: Loss and LAE ratio:
B38: Current accident year, excluding catastrophe losses | E38: 0.597 | G38: 0.593 | I38: 0.582 | K38: 0.575 | M38: 0.589 | O38: 0.602 | Q38: 0.585
B40: Prior year unfavorable reserve development | E40: 0.001 | G40: 0.001 | I40: 0.003 | K40: 0.002 | M40: 0.011 | O40: 0.002 | Q40: 0.004
B42: Catastrophe losses | E42: 0.015 | G42: 0.078 | I42: 0.033 | K42: 0.039 | M42: 0.019 | O42: 0.02 | Q42: 0.042
B44: Total loss and LAE ratio | E44: 0.613 | G44: 0.672 | I44: 0.618 | K44: 0.616 | M44: 0.619 | O44: 0.624 | Q44: 0.631
B46: Expense ratio | E46: 0.388 | G46: 0.368 | I46: 0.366 | K46: 0.371 | M46: 0.379 | O46: 0.38 | Q46: 0.371
B48: Combined ratio | E48: 1.001 | G48: 1.04 | I48: 0.984 | K48: 0.987 | M48: 0.998 | O48: 1.004 | Q48: 1.002
B52: Combined ratio, excluding catastrophe losses | E52: 0.986 | G52: 0.962 | I52: 0.951 | K52: 0.948 | M52: 0.979 | O52: 0.984 | Q52: 0.96
B54: Current accident year combined ratio, excluding
B55: catastrophe losses | E55: 0.985 | G55: 0.961 | I55: 0.948 | K55: 0.946 | M55: 0.968 | O55: 0.982 | Q55: 0.956

Sheet 11
A1: THE HANOVER INSURANCE GROUP
A2: GAAP UNDERWRITING AND OPERATING INCOME INFORMATION AND RATIOS
A4: PERSONAL LINES
A6: Three Months ended December 31
D10: 2014 | M10: 2013
A14: (In millions, except percentage data) | E14: Auto | G14: Home | I14: Other | K14: Total | N14: Auto | P14: Home | R14: Other | T14: Total
B17: Net premiums written | D17: $ | E17: 215900000 | F17: $ | G17: 128100000 | H17: $ | I17: 9700000 | J17: $ | K17: 353700000 | M17: $ | N17: 209500000 | O17: $ | P17: 123400000 | Q17: $ | R17: 10000000 | S17: $ | T17: 342900000
B19: Net premiums earned | D19: $ | E19: 218800000 | F19: $ | G19: 124700000 | H19: $ | I19: 10100000 | J19: $ | K19: 353600000 | M19: $ | N19: 220000000 | O19: $ | P19: 124900000 | Q19: $ | R19: 10400000 | S19: $ | T19: 355300000
B21: Losses and LAE:
B23: Current accident year, excluding catastrophe losses | E23: 163500000 | G23: 47300000 | I23: 3300000 | K23: 214100000 | N23: 171000000 | P23: 46700000 | R23: 3500000 | T23: 221200000
B25: Prior year unfavorable (favorable) reserve development | E25: -1400000 | G25: 300000 | I25: -100000 | K25: -1200000 | N25: 3200000 | P25: 0 | R25: 0 | T25: 3200000
B27: Catastrophe losses | E27: -900000 | G27: 10000000 | I27: 100000 | K27: 9200000 | N27: 1000000 | P27: 11400000 | R27: 300000 | T27: 12700000
B29: Total losses and LAE | E29: 161200000 | G29: 57600000 | I29: 3300000 | K29: 222100000 | N29: 175200000 | P29: 58100000 | R29: 3800000 | T29: 237100000
B31: Amortization of deferred acquisition costs and other underwriting expenses | K31: 102700000 | T31: 108400000
B33: GAAP underwriting profit | K33: 28800000 | T33: 9800000
B35: Net investment income | K35: 18000000 | T35: 19100000
B37: Other income | K37: 3100000 | T37: 3000000
B39: Other operating expenses | K39: -1900000 | T39: -1400000
B41: Operating income before income taxes | J41: $ | K41: 48000000 | S41: $ | T41: 30500000
B46: Loss and LAE ratio:
B48: Current accident year, excluding catastrophe losses | E48: 0.747 | G48: 0.38 | I48: 0.326 | K48: 0.605 | N48: 0.776 | P48: 0.374 | R48: 0.336 | T48: 0.622
B50: Prior year unfavorable (favorable) reserve development | E50: -0.006 | G50: 0.002 | I50: -0.01 | K50: -0.003 | N50: 0.015 | P50: - | R50: - | T50: 0.009
B52: Catastrophe losses | E52: -0.004 | G52: 0.08 | I52: 0.01 | K52: 0.026 | N52: 0.005 | P52: 0.091 | R52: 0.029 | T52: 0.036
B53: Total loss and LAE ratio | E53: 0.737 | G53: 0.462 | I53: 0.326 | K53: 0.628 | N53: 0.796 | P53: 0.465 | R53: 0.365 | T53: 0.667
B55: Expense ratio | K55: 0.283 | T55: 0.298
B57: Combined ratio | K57: 0.911 | T57: 0.965
B61: Change in policies in force | E61: -0.035 | G61: -0.053 | I61: -0.128 | K61: -0.047 | N61: -0.11 | P61: -0.117 | R61: -0.139 | T61: -0.115
B63: Retention | E63: 0.77 | G63: 0.774 | I63: N/M | K63: 0.774 | N63: 0.736 | P63: 0.747 | R63: N/M | T63: 0.744

Sheet 12
A1: THE HANOVER INSURANCE GROUP
A2: GAAP UNDERWRITING AND OPERATING INCOME INFORMATION AND RATIOS
A4: PERSONAL LINES
A6: Year ended December 31
D10: 2014 | M10: 2013
A14: (In millions, except percentage data) | E14: Auto | G14: Home | I14: Other | K14: Total | N14: Auto | P14: Home | R14: Other | T14: Total
B17: Net premiums written | D17: $ | E17: 884100000 | F17: $ | G17: 499000000 | H17: $ | I17: 39700000 | J17: $ | K17: 1422800000 | M17: $ | N17: 890300000 | O17: $ | P17: 496700000 | Q17: $ | R17: 41000000 | S17: $ | T17: 1428000000
B19: Net premiums earned | D19: $ | E19: 868700000 | F19: $ | G19: 498000000 | H19: $ | I19: 40400000 | J19: $ | K19: 1407100000 | M19: $ | N19: 903200000 | O19: $ | P19: 509100000 | Q19: $ | R19: 41900000 | S19: $ | T19: 1454200000
B21: Losses and LAE:
B23: Current accident year, excluding catastrophe losses | E23: 627000000 | G23: 236000000 | I23: 15000000 | K23: 878000000 | N23: 668600000 | P23: 234400000 | R23: 16100000 | T23: 919100000
B25: Prior year unfavorable (favorable) reserve development | E25: -5900000 | G25: 1300000 | I25: -500000 | K25: -5100000 | N25: 13600000 | P25: 0 | R25: 100000 | T25: 13700000
B27: Catastrophe losses | E27: 8500000 | G27: 96900000 | I27: 1000000 | K27: 106400000 | N27: 3600000 | P27: 61200000 | R27: 2100000 | T27: 66900000
B29: Total losses and LAE | E29: 629600000 | G29: 334200000 | I29: 15500000 | K29: 979300000 | N29: 685800000 | P29: 295600000 | R29: 18300000 | T29: 999700000
B31: Amortization of deferred acquisition costs and other underwriting expenses | K31: 405700000 | T31: 416900000
B33: GAAP underwriting profit | K33: 22100000 | T33: 37600000
B35: Net investment income | K35: 71900000 | T35: 75800000
B37: Other income | K37: 12000000 | T37: 12500000
B39: Other operating expenses | K39: -7000000 | T39: -7300000
B41: Operating income before income taxes | J41: $ | K41: 99000000 | S41: $ | T41: 118600000
B46: Loss and LAE ratio:
B48: Current accident year, excluding catastrophe losses | E48: 0.722 | G48: 0.473 | I48: 0.37 | K48: 0.624 | N48: 0.74 | P48: 0.46 | R48: 0.385 | T48: 0.633
B50: Prior year unfavorable (favorable) reserve development | E50: -0.007 | G50: 0.003 | I50: -0.012 | K50: -0.004 | N50: 0.015 | P50: - | R50: 0.002 | T50: 0.009
B52: Catastrophe losses | E52: 0.01 | G52: 0.195 | I52: 0.025 | K52: 0.076 | N52: 0.004 | P52: 0.12 | R52: 0.05 | T52: 0.046
B53: Total loss and LAE ratio | E53: 0.725 | G53: 0.671 | I53: 0.383 | K53: 0.696 | N53: 0.759 | P53: 0.58 | R53: 0.437 | T53: 0.688
B55: Expense ratio | K55: 0.281 | T55: 0.279
B57: Combined ratio | K57: 0.977 | T57: 0.967
B61: Change in policies in force | E61: -0.035 | G61: -0.053 | I61: -0.128 | K61: -0.047 | N61: -0.11 | P61: -0.117 | R61: -0.139 | T61: -0.115
B63: Retention | E63: 0.77 | G63: 0.774 | I63: N/M | K63: 0.774 | N63: 0.736 | P63: 0.747 | R63: N/M | T63: 0.744

Sheet 13
A1: THE HANOVER INSURANCE GROUP
A2: GAAP UNDERWRITING INFORMATION AND RELATED RATIOS
A5: PERSONAL LINES
E10: Q4 | G10: Q1 | I10: Q2 | K10: Q3 | M10: Q4 | O10: Dec-YTD | Q10: Dec-YTD
A11: (In millions, except percentage data) | E11: 2013 | G11: 2014 | I11: 2014 | K11: 2014 | M11: 2014 | O11: 2013 | Q11: 2014
B15: Gross premiums written | D15: $ | E15: 368200000 | F15: $ | G15: 343300000 | H15: $ | I15: 395200000 | J15: $ | K15: 402300000 | L15: $ | M15: 376500000 | N15: $ | O15: 1531600000 | P15: $ | Q15: 1517300000
B17: Net premiums written | D17: $ | E17: 342900000 | F17: $ | G17: 319200000 | H17: $ | I17: 370800000 | J17: $ | K17: 379100000 | L17: $ | M17: 353700000 | N17: $ | O17: 1428000000 | P17: $ | Q17: 1422800000
B19: Net premiums earned | D19: $ | E19: 355300000 | F19: $ | G19: 350200000 | H19: $ | I19: 350300000 | J19: $ | K19: 353000000 | L19: $ | M19: 353600000 | N19: $ | O19: 1454200000 | P19: $ | Q19: 1407100000
B21: Losses and LAE:
B23: Current accident year, excluding catastrophe losses | E23: 221200000 | G23: 230600000 | I23: 219800000 | K23: 213500000 | M23: 214100000 | O23: 919100000 | Q23: 878000000
B25: Prior year unfavorable (favorable) reserve development | E25: 3200000 | G25: -1000000 | I25: -2200000 | K25: -700000 | M25: -1200000 | O25: 13700000 | Q25: -5100000
B27: Catastrophe losses | E27: 12700000 | G27: 18400000 | I27: 27200000 | K27: 51600000 | M27: 9200000 | O27: 66900000 | Q27: 106400000
B29: Total losses and LAE | E29: 237100000 | G29: 248000000 | I29: 244800000 | K29: 264400000 | M29: 222100000 | O29: 999700000 | Q29: 979300000
B31: Amortization of deferred acquisition costs and other underwriting expenses | E31: 108400000 | G31: 100100000 | I31: 101900000 | K31: 101000000 | M31: 102700000 | O31: 416900000 | Q31: 405700000
B33: GAAP underwriting profit (loss) | D33: $ | E33: 9800000 | F33: $ | G33: 2100000 | H33: $ | I33: 3600000 | J33: $ | K33: -12400000 | L33: $ | M33: 28800000 | N33: $ | O33: 37600000 | P33: $ | Q33: 22100000
B37: Loss and LAE ratio:
B39: Current accident year, excluding catastrophe losses | E39: 0.622 | G39: 0.658 | I39: 0.627 | K39: 0.605 | M39: 0.605 | O39: 0.633 | Q39: 0.624
B41: Prior year unfavorable (favorable) reserve development | E41: 0.009 | G41: -0.003 | I41: -0.006 | K41: -0.002 | M41: -0.003 | O41: 0.009 | Q41: -0.004
B43: Catastrophe losses | E43: 0.036 | G43: 0.053 | I43: 0.078 | K43: 0.146 | M43: 0.026 | O43: 0.046 | Q43: 0.076
B45: Total loss and LAE ratio | E45: 0.667 | G45: 0.708 | I45: 0.699 | K45: 0.749 | M45: 0.628 | O45: 0.688 | Q45: 0.696
B47: Expense ratio | E47: 0.298 | G47: 0.279 | I47: 0.284 | K47: 0.279 | M47: 0.283 | O47: 0.279 | Q47: 0.281
B49: Combined ratio | E49: 0.965 | G49: 0.987 | I49: 0.983 | K49: 1.028 | M49: 0.911 | O49: 0.967 | Q49: 0.977
B53: Combined ratio, excluding catastrophe losses | E53: 0.929 | G53: 0.934 | I53: 0.905 | K53: 0.882 | M53: 0.885 | O53: 0.921 | Q53: 0.901
B55: Current accident year combined ratio, excluding
B56: catastrophe losses | E56: 0.92 | G56: 0.937 | I56: 0.911 | K56: 0.884 | M56: 0.888 | O56: 0.912 | Q56: 0.905

Sheet 14
A1: THE HANOVER INSURANCE GROUP
A2: GAAP UNDERWRITING AND OPERATING INCOME INFORMATION AND RATIOS
A4: CHAUCER
A6: Three Months ended December 31
D10: 2014 | Q10: 2013
G12: Marine & | K12: UK | M12: Casualty | T12: Marine & | X12: UK | Z12: Casualty
A13: (In millions, except percentage data) | E13: Property | G13: Aviation | I13: Energy | K13: Motor | M13: & Other | O13: Total | R13: Property | T13: Aviation | V13: Energy | X13: Motor | Z13: & Other | AB13: Total
B16: Gross premiums written | D16: $ | E16: 23600000 | F16: $ | G16: 83100000 | H16: $ | I16: 50000000 | J16: $ | K16: 68300000 | L16: $ | M16: 68300000 | N16: $ | O16: 293300000 | Q16: $ | R16: 20600000 | S16: $ | T16: 71100000 | U16: $ | V16: 48100000 | W16: $ | X16: 75700000 | Y16: $ | Z16: 49900000 | AA16: $ | AB16: 265400000
B18: Net premiums written | D18: $ | E18: 22100000 | F18: $ | G18: 75800000 | H18: $ | I18: 40400000 | J18: $ | K18: 68600000 | L18: $ | M18: 57200000 | N18: $ | O18: 264100000 | Q18: $ | R18: 23200000 | S18: $ | T18: 57100000 | U18: $ | V18: 41400000 | W18: $ | X18: 75800000 | Y18: $ | Z18: 39500000 | AA18: $ | AB18: 237000000
B20: Net premiums earned | D20: $ | E20: 46000000 | F20: $ | G20: 74900000 | H20: $ | I20: 50100000 | J20: $ | K20: 70700000 | L20: $ | M20: 64100000 | N20: $ | O20: 305800000 | Q20: $ | R20: 49000000 | S20: $ | T20: 65200000 | U20: $ | V20: 48700000 | W20: $ | X20: 75900000 | Y20: $ | Z20: 43300000 | AA20: $ | AB20: 282100000
B22: Losses and LAE:
B24: Current accident year, excluding catastrophe losses | O24: 177000000 | AB24: 159200000
B26: Prior year favorable reserve development | O26: -33200000 | AB26: -22800000
B28: Catastrophe losses | O28: 1900000 | AB28: 7500000
B30: Total losses and LAE | O30: 145700000 | AB30: 143900000
B32: Amortization of deferred acquisition costs and other underwriting expenses | O32: 123600000 | AB32: 109000000
B34: GAAP underwriting profit | O34: 36500000 | AB34: 29200000
B36: Net investment income | O36: 12000000 | AB36: 11300000
B38: Other income | O38: 3200000 | AB38: 4000000
B40: Other operating expenses | O40: -800000 | AB40: -4300000
B42: Operating income before income taxes | N42: $ | O42: 50900000 | AA42: $ | AB42: 40200000
B47: Loss and LAE ratio:
B49: Current accident year, excluding catastrophe losses | O49: 0.58 | AB49: 0.564
B51: Prior year favorable reserve development | O51: -0.109 | AB51: -0.081
B53: Catastrophe losses | O53: 0.006 | AB53: 0.027
B54: Total loss and LAE ratio | O54: 0.477 | AB54: 0.51
B56: Expense ratio | O56: 0.404 | AB56: 0.386
B58: Combined ratio | O58: 0.881 | AB58: 0.896

Sheet 15
A1: THE HANOVER INSURANCE GROUP
A2: GAAP UNDERWRITING AND OPERATING INCOME INFORMATION AND RATIOS
A4: CHAUCER
A6: Year ended December 31
D10: 2014 | Q10: 2013
G12: Marine & | K12: UK | M12: Casualty | T12: Marine & | X12: UK | Z12: Casualty
A13: (In millions, except percentage data) | E13: Property | G13: Aviation | I13: Energy | K13: Motor | M13: & Other | O13: Total | R13: Property | T13: Aviation | V13: Energy | X13: Motor | Z13: & Other | AB13: Total
B16: Gross premiums written | D16: $ | E16: 245400000 | F16: $ | G16: 374600000 | H16: $ | I16: 247200000 | J16: $ | K16: 319100000 | L16: $ | M16: 319300000 | N16: $ | O16: 1505600000 | Q16: $ | R16: 254600000 | S16: $ | T16: 348000000 | U16: $ | V16: 233300000 | W16: $ | X16: 319400000 | Y16: $ | Z16: 218900000 | AA16: $ | AB16: 1374200000
B18: Net premiums written | D18: $ | E18: 179200000 | F18: $ | G18: 304800000 | H18: $ | I18: 173000000 | J18: $ | K18: 297700000 | L18: $ | M18: 276700000 | N18: $ | O18: 1231400000 | Q18: $ | R18: 191900000 | S18: $ | T18: 277100000 | U18: $ | V18: 174200000 | W18: $ | X18: 300500000 | Y18: $ | Z18: 173800000 | AA18: $ | AB18: 1117500000
B20: Net premiums earned | D20: $ | E20: 187600000 | F20: $ | G20: 284100000 | H20: $ | I20: 200000000 | J20: $ | K20: 305900000 | L20: $ | M20: 244200000 | N20: $ | O20: 1221800000 | Q20: $ | R20: 183600000 | S20: $ | T20: 250000000 | U20: $ | V20: 169600000 | W20: $ | X20: 284200000 | Y20: $ | Z20: 150500000 | AA20: $ | AB20: 1037900000
B22: Losses and LAE:
B24: Current accident year, excluding catastrophe losses | O24: 709500000 | AB24: 598400000
B26: Prior year favorable reserve development | O26: -104600000 | AB26: -94600000
B28: Catastrophe losses | O28: 28800000 | AB28: 34400000
B30: Total losses and LAE | O30: 633700000 | AB30: 538200000
B32: Amortization of deferred acquisition costs and other underwriting expenses | O32: 465600000 | AB32: 392000000
B34: GAAP underwriting profit | O34: 122500000 | AB34: 107700000
B36: Net investment income | O36: 44200000 | AB36: 42700000
B38: Other income | O38: 13700000 | AB38: 17600000
B40: Other operating expenses | O40: -2800000 | AB40: -17600000
B42: Operating income before income taxes | N42: $ | O42: 177600000 | AA42: $ | AB42: 150400000
B47: Loss and LAE ratio:
B49: Current accident year, excluding catastrophe losses | O49: 0.581 | AB49: 0.576
B51: Prior year favorable reserve development | O51: -0.086 | AB51: -0.091
B53: Catastrophe losses | O53: 0.024 | AB53: 0.033
B54: Total loss and LAE ratio | O54: 0.519 | AB54: 0.518
B56: Expense ratio | O56: 0.381 | AB56: 0.378
B58: Combined ratio | O58: 0.9 | AB58: 0.896

Sheet 16
A1: THE HANOVER INSURANCE GROUP
A2: GAAP UNDERWRITING INFORMATION AND RELATED RATIOS
A5: CHAUCER
D10: Q4 | F10: Q1 | H10: Q2 | J10: Q3 | L10: Q4 | N10: Dec-YTD | P10: Dec-YTD
A11: (In millions, except percentage data) | D11: 2013 | F11: 2014 | H11: 2014 | J11: 2014 | L11: 2014 | N11: 2013 | P11: 2014
B15: Gross premiums written | C15: $ | D15: 265400000 | E15: $ | F15: 467000000 | G15: $ | H15: 415400000 | I15: $ | J15: 329900000 | K15: $ | L15: 293300000 | M15: $ | N15: 1374200000 | O15: $ | P15: 1505600000
B17: Net premiums written | C17: $ | D17: 237000000 | E17: $ | F17: 313800000 | G17: $ | H17: 364400000 | I17: $ | J17: 289100000 | K17: $ | L17: 264100000 | M17: $ | N17: 1117500000 | O17: $ | P17: 1231400000
B19: Net premiums earned | C19: $ | D19: 282100000 | E19: $ | F19: 300100000 | G19: $ | H19: 306800000 | I19: $ | J19: 309100000 | K19: $ | L19: 305800000 | M19: $ | N19: 1037900000 | O19: $ | P19: 1221800000
B21: Losses and LAE:
B23: Current accident year, excluding catastrophe losses | D23: 159200000 | F23: 178100000 | H23: 178400000 | J23: 176000000 | L23: 177000000 | N23: 598400000 | P23: 709500000
B25: Prior year favorable reserve development | D25: -22800000 | F25: -19600000 | H25: -29200000 | J25: -22600000 | L25: -33200000 | N25: -94600000 | P25: -104600000
B27: Catastrophe losses | D27: 7500000 | F27: -700000 | H27: 11500000 | J27: 16100000 | L27: 1900000 | N27: 34400000 | P27: 28800000
B29: Total losses and LAE | D29: 143900000 | F29: 157800000 | H29: 160700000 | J29: 169500000 | L29: 145700000 | N29: 538200000 | P29: 633700000
B31: Amortization of deferred acquisition costs and other underwriting expenses | D31: 109000000 | F31: 105800000 | H31: 121800000 | J31: 114400000 | L31: 123600000 | N31: 392000000 | P31: 465600000
B33: GAAP underwriting profit | C33: $ | D33: 29200000 | E33: $ | F33: 36500000 | G33: $ | H33: 24300000 | I33: $ | J33: 25200000 | K33: $ | L33: 36500000 | M33: $ | N33: 107700000 | O33: $ | P33: 122500000
B37: Loss and LAE ratio:
B39: Current accident year, excluding catastrophe losses | D39: 0.564 | F39: 0.592 | H39: 0.582 | J39: 0.569 | L39: 0.58 | N39: 0.576 | P39: 0.581
B41: Prior year favorable reserve development | D41: -0.081 | F41: -0.065 | H41: -0.095 | J41: -0.073 | L41: -0.109 | N41: -0.091 | P41: -0.086
B43: Catastrophe losses | D43: 0.027 | F43: -0.002 | H43: 0.037 | J43: 0.052 | L43: 0.006 | N43: 0.033 | P43: 0.024
B45: Total loss and LAE ratio | D45: 0.51 | F45: 0.525 | H45: 0.524 | J45: 0.548 | L45: 0.477 | N45: 0.518 | P45: 0.519
B47: Expense ratio | D47: 0.386 | F47: 0.353 | H47: 0.397 | J47: 0.37 | L47: 0.404 | N47: 0.378 | P47: 0.381
B49: Combined ratio | D49: 0.896 | F49: 0.878 | H49: 0.921 | J49: 0.918 | L49: 0.881 | N49: 0.896 | P49: 0.9
B53: Combined ratio, excluding catastrophe losses | D53: 0.869 | F53: 0.88 | H53: 0.884 | J53: 0.866 | L53: 0.875 | N53: 0.863 | P53: 0.876
B55: Current accident year combined ratio, excluding
B56: catastrophe losses | D56: 0.95 | F56: 0.945 | H56: 0.979 | J56: 0.939 | L56: 0.984 | N56: 0.954 | P56: 0.962

Sheet 17
A1: THE HANOVER INSURANCE GROUP
A2: NET INVESTMENT INCOME AND YIELDS
D6: Q4 | F6: Q1 | H6: Q2 | J6: Q3 | L6: Q4 | N6: YTD | P6: YTD
A7: (In millions, except yields) | D7: 2013 | F7: 2014 | H7: 2014 | J7: 2014 | L7: 2014 | N7: 2013 | P7: 2014
A9: Net Investment Income
A10: Fixed maturities | D10: 64.5 | F10: 64.7 | H10: 63.2 | J10: 63.4 | L10: 64.5 | N10: 254.8 | P10: 255.8
A11: Equity securities | D11: 3.6 | F11: 3.4 | H11: 4.4 | J11: 4.5 | L11: 4.2 | N11: 15.6 | P11: 16.5
A12: Other investments | D12: 2.5 | F12: 1.5 | H12: 2.1 | J12: 2.3 | L12: 3.1 | N12: 8.8 | P12: 9
A13: Investment expenses | D13: -2.5 | F13: -2.6 | H13: -2.7 | J13: -2.7 | L13: -3 | N13: -10.2 | P13: -11
A14: Total | D14: 68.1 | F14: 67 | H14: 67 | J14: 67.5 | L14: 68.8 | N14: 269 | P14: 270.3
A17: Pre-tax Yields
A19: Fixed maturities | D19: 0.0386 | F19: 0.0379 | H19: 0.0374 | J19: 0.0368 | L19: 0.0365 | N19: 0.0395 | P19: 0.0371
A20: Total | D20: 0.0359 | F20: 0.0347 | H20: 0.0342 | J20: 0.0339 | L20: 0.0339 | N20: 0.0363 | P20: 0.0342
A24: Pre-tax yields are calculated as annualized net investment income divided by the average of investment balances, excluding unrealized capital gains and losses, at the end of each month during the period.

Sheet 18
B1: THE HANOVER INSURANCE GROUP
B2: INVESTMENT PORTFOLIO
B3: December 31, 2014
B7: (In millions)
I8: Change in | J8: Change in
D9: Weighted | H9: Net | I9: Net | J9: Net
D10: Average | E10: Amortized | F10: Fair | G10: % of | H10: Unrealized | I10: Unrealized | J10: Unrealized
B11: Investment Type | D11: Quality | E11: Cost or Cost | F11: Value | G11: Total | H11: Gain (Loss) | I11: During Q4 2014 | J11: YTD
B13: Fixed maturities:
B14: U.S. Treasury and government agencies | D14: AAA | E14: 516.3 | F14: 520.4 | G14: 0.06 | H14: 4.1 | I14: 5.2 | J14: 15
B15: Foreign government | D15: AAA | E15: 349.4 | F15: 354 | G15: 0.041 | H15: 4.6 | I15: 2.7 | J15: 4.1
B16: Municipals:
C17: Taxable | D17: AA | E17: 952.5 | F17: 1007.2 | G17: 0.117 | H17: 54.7 | I17: 7.6 | J17: 36.8
C18: Tax exempt | D18: AA | E18: 127.1 | F18: 130.8 | G18: 0.015 | H18: 3.7 | I18: 3.2 | J18: 3.3
B19: Corporate:
B20: NAIC 1 | C20: NAIC 1 | D20: A | E20: 1838.4 | F20: 1909.5 | G20: 0.221 | H20: 71.1 | I20: 4.4 | J20: 14.8
B21: NAIC 2 | C21: NAIC 2 | D21: BBB | E21: 1483.7 | F21: 1547 | G21: 0.18 | H21: 63.3 | I21: -9.9 | J21: 2.5
B22: NAIC 3 and below | C22: NAIC 3 and below | D22: B+ | E22: 424.2 | F22: 424.3 | G22: 0.049 | H22: 0.1 | I22: -10.3 | J22: -16.8
B23: Total corporate | D23: BBB+ | E23: 3746.3 | F23: 3880.8 | G23: 0.45 | H23: 134.5 | I23: -15.8 | J23: 0.5
B24: Asset backed:
C25: Residential mortgage-backed | D25: AA+ | E25: 770.4 | F25: 789.1 | G25: 0.092 | H25: 18.7 | I25: 5.9 | J25: 12.7
C26: Commercial mortgage-backed | D26: AA+ | E26: 516.7 | F26: 527.8 | G26: 0.061 | H26: 11.1 | I26: 3.2 | J26: 5.4
C27: Asset-backed | D27: AAA | E27: 167 | F27: 168 | G27: 0.02 | H27: 1 | I27: -0.2 | J27: -0.8
B28: Total fixed maturities | D28: A+ | E28: 7145.7 | F28: 7378.1 | G28: 0.856 | H28: 232.4 | I28: 11.8 | J28: 77
B29: Equity securities | E29: 506.6 | F29: 580.8 | G29: 0.067 | H29: 74.2 | I29: 5.2 | J29: 10.5
B30: Other investments | E30: 287.8 | F30: 291.4 | G30: 0.034 | H30: 3.6 | I30: 0.4 | J30: 0.4
B31: Total investments | E31: 7940.1 | F31: 8250.3 | G31: 0.957 | H31: 310.2 | I31: 17.4 | J31: 87.9
B32: Cash and cash equivalents | E32: 373.3 | F32: 373.3 | G32: 0.043 | H32: 0 | I32: 0 | J32: 0
B33: Total | E33: 8313.4 | F33: 8623.6 | G33: 1 | H33: 310.2 | I33: 17.4 | J33: 87.9
B74: (1) Includes catastrophe loss adjustment expenses of $6.3 million and $1.4 million in our commercial multiple peril line and other commercial lines, respectively, for the year ended December 31, 2012.

Sheet 19
A1: THE HANOVER INSURANCE GROUP
A2: CREDIT QUALITY AND DURATION OF FIXED MATURITIES
A3: December 31, 2014
A5: (In millions)
A7: CREDIT QUALITY OF FIXED MATURITIES
C9: Rating Agency | D9: Amortized | G9: Fair | I9: % of Total
B10: NAIC Designation | C10: Equivalent Designation | D10: Cost | G10: Value | I10: Fair Value
B12: 1 | C12: Aaa/Aa/A | E12: 5197.8 | G12: 5365.7 | I12: 0.727
B13: 2 | C13: Baa | E13: 1516.7 | G13: 1580.9 | I13: 0.214
B14: 3 | C14: Ba | E14: 199.2 | G14: 205 | I14: 0.028
B15: 4 | C15: B | E15: 197.4 | G15: 194.2 | I15: 0.026
B16: 5 | C16: Caa and lower | E16: 30.1 | G16: 27.7 | I16: 0.004
B17: 6 | C17: In or near default | E17: 4.5 | G17: 4.6 | I17: 0.001
A18: Total fixed maturities | E18: 7145.7 | G18: 7378.1 | I18: 1
B22: DURATION OF FIXED MATURITIES
D24: Amortized | G24: Fair | I24: % of Total
D25: Cost | G25: Value | I25: Fair Value
C27: 0-2 years | E27: 1666 | G27: 1705.6 | I27: 0.231
C28: 2-4 years | E28: 1767.6 | G28: 1837.2 | I28: 0.249
C29: 4-6 years | E29: 2013.7 | G29: 2085.2 | I29: 0.283
C30: 6-8 years | E30: 1327.4 | G30: 1363.5 | I30: 0.185
C31: 8-10 years | E31: 301.7 | G31: 310.3 | I31: 0.042
C32: 10+ years | E32: 69.3 | G32: 76.3 | I32: 0.01
C33: Total fixed maturities | E33: 7145.7 | G33: 7378.1 | I33: 1
C35: Weighted Average Duration | E35: 4.22
B74: (1) Includes catastrophe loss adjustment expenses of $6.3 million and $1.4 million in our commercial multiple peril line and other commercial lines, respectively, for the year ended December 31, 2012.

Sheet 20
B1: THE HANOVER INSURANCE GROUP
B2: TOP 10 CORPORATE AND MUNICIPAL FIXED MATURITY HOLDINGS
B3: December 31, 2014
C6: (In millions, except percentage data)
C7: Issuer | D7: Amortized Cost | E7: Fair Value | F7: As a Percent of Invested Assets | G7: S&P Ratings
C8: Royal Bank of Scotland: (1)
C9: Term deposits | D9: 48.8 | E9: 82.1 | F9: 0.0096 | G9: A-
C10: Notes | D10: 7.6 | E10: 9 | F10: 0.0011 | G10: A
C11: Lloyds Bank: (1)
C12: Term deposit | D12: 48.8 | E12: 48.5 | F12: 0.0056 | G12: A
C13: Notes | D13: 7.6 | E13: 8 | F13: 0.0009 | G13: A-
C14: Citigroup | D14: 29.1 | E14: 30.6 | F14: 0.0036 | G14: A-
C15: Verizon | D15: 29 | E15: 29.3 | F15: 0.0034 | G15: BBB+
C16: Bank of America | D16: 28 | E16: 29.9 | F16: 0.0035 | G16: BBB+
C17: JP Morgan | D17: 26.5 | E17: 27.1 | F17: 0.0031 | G17: A
C18: Wells Fargo | D18: 26.2 | E18: 27.5 | F18: 0.0032 | G18: A+
C19: Goldman Sachs | D19: 25 | E19: 26.3 | F19: 0.0031 | G19: A-
C20: Metlife | D20: 24.8 | E20: 25.8 | F20: 0.003 | G20: A+
C21: GE Capital | D21: 24.2 | E21: 25.8 | F21: 0.003 | G21: AA+
C22: Kinder Morgan | D22: 23.7 | E22: 24.4 | F22: 0.0028 | G22: BBB-
C23: Top 10 Corporate and Municipal Fixed | D23: 292.9 | E23: 303.2 | F23: 0.0352
C25: (1) UK government owns 79% of bank equity; term deposits mature in the fourth quarter of 2014.
C26: (1) UK government owns 25% of bank equity; term deposit matures in the third quarter of 2015.
B74: (1) Includes catastrophe loss adjustment expenses of $6.3 million and $1.4 million in our commercial multiple peril line and other commercial lines, respectively, for the year ended December 31, 2012.

Sheet 21
A2: THE HANOVER INSURANCE GROUP
A3: RECONCILIATION OF OPERATING INCOME TO NET INCOME
C8: Three Months ended December 31 | M8: Year ended December 31
C9: 2014 | H9: 2013 | M9: 2014 | R9: 2013
A10: (In millions, except per share data) | D10: $ | E10: Per Share (Diluted) | I10: $ | J10: Per Share (Diluted) | N10: $ | O10: Per Share (Diluted) | S10: $ | T10: Per Share (Diluted)
A11: OPERATING INCOME (LOSS)
A12: Commercial Lines | C12: $ | D12: 36500000 | H12: $ | I12: 34700000 | M12: $ | N12: 139900000 | R12: $ | S12: 132400000
A13: Personal Lines | D13: 48000000 | I13: 30500000 | N13: 99000000 | S13: 118600000
A14: Chaucer | D14: 50900000 | I14: 40200000 | N14: 177600000 | S14: 150400000
A15: Other | D15: -2800000 | I15: -2500000 | N15: -10300000 | S15: -8000000
A16: Total | D16: 132600000 | I16: 102900000 | N16: 406200000 | S16: 393400000
A18: Interest expense | D18: -16300000 | I18: -16600000 | N18: -65200000 | S18: -65300000
A20: Operating income before income taxes | D20: 116300000 | E20: $ | F20: 2.59 | I20: 86300000 | J20: $ | K20: 1.93 | N20: 341000000 | O20: $ | P20: 7.6 | S20: 328100000 | T20: $ | U20: 7.31
A22: Income tax expense on operating income | D22: -36700000 | F22: -0.82 | I22: -26700000 | K22: -0.6 | N22: -108300000 | P22: -2.41 | S22: -100900000 | U22: -2.25
A24: Operating income after income taxes | D24: 79600000 | F24: 1.77 | I24: 59600000 | K24: 1.33 | N24: 232700000 | P24: 5.19 | S24: 227200000 | U24: 5.06
A25: Net realized investment gains | D25: 18600000 | F25: 0.42 | I25: 10700000 | K25: 0.24 | N25: 50100000 | P25: 1.12 | S25: 33500000 | U25: 0.75
A26: Loss from disposal of real estate | D26: 0 | F26: 0 | I26: 0 | K26: 0 | N26: 0 | P26: 0 | S26: -4700000 | U26: -0.11
A27: Loss from repayment of debt | D27: 0 | F27: 0 | I27: -8600000 | K27: -0.19 | N27: -100000 | P27: 0 | S27: -27700000 | U27: -0.62
A28: Net costs related to acquired businesses | D28: -100000 | F28: 0 | I28: -100000 | K28: 0 | N28: -1200000 | P28: -0.03 | S28: -100000 | U28: 0
A29: Loss from settlement of pension obligation | D29: -12100000 | F29: -0.28 | I29: 0 | K29: 0 | N29: -12100000 | P29: -0.28 | S29: 0 | U29: 0
A30: Net foreign exchange gains (losses) | D30: 200000 | F30: 0.01 | I30: -100000 | K30: 0 | N30: 300000 | P30: 0.01 | S30: 0 | U30: 0
A31: Income tax benefit
A32: on non-operating items | D32: 3900000 | F32: 0.09 | I32: 3400000 | K32: 0.07 | N32: 12600000 | P32: 0.28 | S32: 17500000 | U32: 0.39
A33: Income from continuing operations, net of taxes | D33: 90100000 | F33: 2.01 | I33: 64900000 | K33: 1.45 | N33: 282300000 | P33: 6.29 | S33: 245700000 | U33: 5.47
A35: Discontinued operations, net of taxes | D35: -200000 | F35: -0.01 | I35: 5200000 | K35: 0.12 | N35: -300000 | P35: -0.01 | S35: 5300000 | U35: 0.12
A36: NET INCOME | C36: $ | D36: 89900000 | E36: $ | F36: 2 | H36: $ | I36: 70100000 | J36: $ | K36: 1.57 | M36: $ | N36: 282000000 | O36: $ | P36: 6.28 | R36: $ | S36: 251000000 | T36: $ | U36: 5.59

Sheet 22
A2: Non-GAAP Financial Measures
B4: The Hanover uses non-GAAP financial measures as important measures of the Company’s operating performance, which we believe provide investors with additional information regarding management’s evaluation of our results of operations and financial performance. The Company's non-GAAP measures include operating income before interest expense and taxes, total operating income after taxes, total operating income after taxes per share, total book value per share, total book value per share excluding net unrealized gains and losses related to investments, net of tax, tangible book value per share and measures of operating income and loss ratios excluding catastrophe losses and reserve development. After-tax operating income EPS (sometimes referred to as “after-tax operating income per share”) is a non-GAAP measure. It is defined as net income (loss) excluding the after-tax impact of net realized investment gains (losses), as well as results from discontinued operations for a period divided by the average number of diluted shares of common stock.
B6: Operating income before interest expense and taxes is net income, excluding interest expense on debt, income taxes and net realized investment gains and losses, because fluctuations in these gains and losses are determined by interest rates, financial markets and the timing of sales. Operating income before interest expense and taxes also excludes net gains and losses on disposals of businesses, discontinued operations, restructuring costs, extraordinary items, the cumulative effect of accounting changes and certain other items. Operating income before interest expense and taxes is the sum of the operating income from: Commercial Lines, Personal Lines, Chaucer, and Other. The Hanover believes that measures of operating income before interest expense and taxes provide investors with a valuable measure of the performance of the Company’s ongoing businesses because they highlight net income attributable to the core operations of the business.
B8: Book value per share is total shareholders’ equity divided by the number of common shares outstanding. Book value per share excluding net unrealized gains and losses related to investments, net of tax is total shareholders’ equity excluding the after-tax effect of unrealized investment gains and losses divided by the number of common shares outstanding. Tangible book value per share is total shareholders' equity, excluding goodwill, divided by the number of common shares outstanding.
B10: The Hanover also provides measures of operating income and loss ratios that exclude the effects of catastrophe losses. A catastrophe is a severe loss, resulting from natural or manmade events, including risks such as fire, hurricane, earthquake, windstorm, explosion, terrorism or other similar events. Each catastrophe has unique characteristics. Catastrophes are not predictable as to timing or loss amount in advance. The Hanover believes that providing certain financial metrics and trends excluding the effects of catastrophes is meaningful for investors to understand the variability of periodic earnings and loss ratios.
B12: Prior year reserve development, which can be favorable or unfavorable, represents changes in our estimate of the costs to pay claims from prior years. We believe that a discussion of operating income excluding prior year reserve development is helpful to investors since it provides insight into both our estimate of current year accident results and changes to prior-year reserve estimates.
B14: Operating income before and after interest expense and taxes and measures of operating income that exclude the effects of catastrophe losses or reserve development should not be construed as substitutes for net income determined in accordance with GAAP. A reconciliation of income from continuing operations to operating income before interest expense and taxes and income from continuing operations per share to operating income after taxes per share for the twelve months ended December 31, 2014 and 2013 is set forth on page 21 of this document. The presentation of loss ratios calculated excluding the effects of reserve development and/or catastrophe losses should not be construed as a substitute for loss ratios determined in accordance with GAAP.
B74: (1) Includes catastrophe loss adjustment expenses of $6.3 million and $1.4 million in our commercial multiple peril line and other commercial lines, respectively, for the year ended December 31, 2012.

Sheet 23
B3: CORPORATE OFFICES AND | I3: INDUSTRY RATINGS AS OF FEBRUARY 4, 2015 | P3: TRANSFER AGENT
B4: PRINCIPAL SUBSIDIARIES
B6: THE HANOVER INSURANCE GROUP, INC. | K6: A.M. | L6: Standard | P6: Computershare Investor Services
B7: 440 Lincoln Street | I7: Financial Strength Ratings | K7: Best | L7: & Poor's | M7: Moody's | P7: PO Box 30170
B8: Worcester, MA 01653 | J8: The Hanover Insurance | P8: College Station, TX 77842-3170
J9: Company | K9: A | L9: A | M9: A3 | P9: 1-800-317-4454
B10: The Hanover Insurance Company | J10: Citizens Insurance Company
B11: 440 Lincoln Street | J11: of America | K11: A | L11: A | M11: -
B12: Worcester, MA 01653
P13: COMMON STOCK
B14: Citizens Insurance Company of America | K14: A.M. | L14: Standard
B15: 808 North Highlander Way | I15: Debt Ratings | K15: Best | L15: & Poor's | M15: Moody's | P15: Common stock of The Hanover Insurance Group is traded on the New
B16: Howell, MI 48843 | J16: The Hanover Insurance Group, Inc. | P16: York Stock Exchange under the symbol "THG".
J17: Senior Debt | K17: bbb | L17: BBB | M17: Baa3
B18: Chaucer Holdings PLC | J18: Subordinated Debentures | K18: bb+ | L18: BB+ | M18: Ba1
B19: Plantation Place | P19: INQUIRIES
B20: 30 Fenchurch Street
B21: London | P21: Oksana Lukasheva
B22: EC3M 3AD | P22: Vice President
P23: Investor Relations
B24: MARKET AND DIVIDEND INFORMATION | P24: (508) 855-2063
P25: olukasheva@hanover.com
B26: The following tables set forth the high and low closing
B27: sales prices of our common stock and cash dividends
B28: for the periods indicated: | P28: INVESTOR INFORMATION LINE
B30: Quarter Ended | C30: 2014 | P30: Dial 1-800-407-5222 to receive additional printed information,
C31: Price Range | E31: Dividends | P31: fax-on-demand services or other prerecorded messages.
C32: High | D32: Low | E32: Per Share
B33: ="March 31" -> March 31 | C33: 61.44 | D33: 53.14 | E33: 0.37 | P33: Please visit our internet site at http:// www.Hanover.com
B34: ="June 30" -> June 30 | C34: 64 | D34: 58.23 | E34: 0.37
B35: ="September 30" -> September 30 | C35: 63.82 | D35: 57.81 | E35: 0.37
B36: ="December 31" -> December 31 | C36: 73.3 | D36: 60.51 | E36: 0.41
B39: Quarter Ended | C39: 2013
C40: Price Range | E40: Dividends
C41: High | D41: Low | E41: Per Share
B42: ="March 31" -> March 31 | C42: 49.68 | D42: 39.19 | E42: 0.33
B43: ="June 30" -> June 30 | C43: 51.66 | D43: 46.73 | E43: 0.33
B44: ="September 30" -> September 30 | C44: 56.06 | D44: 48.67 | E44: 0.33
B45: ="December 31" -> December 31 | C45: 60.99 | D45: 54.83 | E45: 0.37
B75: (1) Includes catastrophe loss adjustment expenses of $6.3 million and $1.4 million in our commercial multiple peril line and other commercial lines, respectively, for the year ended December 31, 2012.

Sheet BS Equity Parentheticals (hidden)
A2: FOOTNOTE INPUT
A3: =FORMQTR&", "&VALUE(CV) -> 
A6: Page # | B6: Footnote | G6: ="YTD "&RIGHT(CV,2) ->  | J6: ="YTD "&RIGHT(PV,2) -> 
G9: CENTER-SUM | J9: =+G9 -> CENTER-SUM
G10: PRODUCT | J10: =+G10 -> PRODUCT
G11: LEGAL | J11: LEGAL
G12: PROD-Q | J12: PROD-Q
G13: =VALUE(CV)&" Actuals" ->  | J13: =VALUE(PV)&" Actuals" -> 
G14: =CY ->  | J14: =PYE -> 
G15: BOOK TYPE | J15: BOOK TYPE
A17: 3 | B17: Commons Stock Issued
B18: Commons Stock Issued | C18: =+CSISSUE_CY -> 60.5 | F18: ICSTOCK | G18: =ROUND(G19/1000000,1) -> 60.5 | I18: ICSTOCK | J18: =ROUND(J19/1000000,1) -> 60.5
F19: ICSTOCK | G19: 60475872 | I19: ICSTOCK | J19: 60475872
A20: 3 | B20: Treasury Stock Shares Outstanding
B21: Treasury Stock Shares Outstanding - per essbase | C21: =+TSOUT_CY -> 16.6 | F21: TSTOCKOUT | G21: =(ROUND(G22/1000000,1))+(M21/1000000) -> 16.7 | I21: TSTOCKOUT | J21: =(ROUND(J22/1000000,1))+(P21/1000000) -> 16.8
B22: Common shares outstanding | C22: =ROUND('2'!K52/1000000,1) -> 43.9 | F22: TSTOCKOUT | G22: 16733094 | I22: TSTOCKOUT | J22: 16820438
B23: Treasury Stock Shares Outstanding - rounded for balance sheet | C23: =+C18-C22 -> 16.6

Sheet Development (hidden)
B1: BOOK TYPE | C1: Product Qualifier | D1: Summary Centers | E1: Consolidated BU Rollup
B2: =CQ ->  | C2: =CQ ->  | D2: =CQ ->  | E2: =_TEB2 ->  | F2: =_TEB2 ->  | G2: =_TEB2 ->  | H2: =_TEB3 ->  | I2: =_TEB3 ->  | J2: =_TEB3 ->  | K2: =_TEB4 ->  | L2: =_TEB4 ->  | M2: =_TEB4 ->  | N2: =CQ ->  | O2: =CQ ->  | P2: =CQ ->  | Q2: =CY -> 
B3: =VALUE(PV)&" Actuals" ->  | C3: =VALUE(PV)&" Actuals" ->  | D3: =VALUE(PV)&" Actuals" ->  | E3: =VALUE(_TYR2)&" Actuals" ->  | F3: =VALUE(_TYR2)&" Actuals" ->  | G3: =VALUE(_TYR2)&" Actuals" ->  | H3: =VALUE(_TYR3)&" Actuals" ->  | I3: =VALUE(_TYR3)&" Actuals" ->  | J3: =VALUE(_TYR3)&" Actuals" ->  | K3: =VALUE(_TYR4)&" Actuals" ->  | L3: =VALUE(_TYR4)&" Actuals" ->  | M3: =VALUE(_TYR4)&" Actuals" ->  | N3: =VALUE(CV)&" Actuals" ->  | O3: =VALUE(CV)&" Actuals" ->  | P3: =VALUE(CV)&" Actuals" ->  | Q3: =VALUE(PV)&" Actuals" ->  | R3: =VALUE(PV)&" Actuals" ->  | S3: =VALUE(PV)&" Actuals" ->  | T3: =VALUE(CV)&" Actuals" ->  | U3: =VALUE(CV)&" Actuals" ->  | V3: =VALUE(CV)&" Actuals" -> 
B4: PY-Loss-Dev(Fav)Unfav | C4: PY-LAE-Dev(Fav)Unfav | D4: PYLOSS-LAE DEV (Fav)Unfav | E4: PY-Loss-Dev(Fav)Unfav | F4: PY-LAE-Dev(Fav)Unfav | G4: PYLOSS-LAE DEV (Fav)Unfav | H4: PY-Loss-Dev(Fav)Unfav | I4: PY-LAE-Dev(Fav)Unfav | J4: PYLOSS-LAE DEV (Fav)Unfav | K4: PY-Loss-Dev(Fav)Unfav | L4: PY-LAE-Dev(Fav)Unfav | M4: PYLOSS-LAE DEV (Fav)Unfav | N4: PY-Loss-Dev(Fav)Unfav | O4: PY-LAE-Dev(Fav)Unfav | P4: PYLOSS-LAE DEV (Fav)Unfav | Q4: PY-Loss-Dev(Fav)Unfav | R4: PY-LAE-Dev(Fav)Unfav | S4: PYLOSS-LAE DEV (Fav)Unfav | T4: PY-Loss-Dev(Fav)Unfav | U4: PY-LAE-Dev(Fav)Unfav | V4: PYLOSS-LAE DEV (Fav)Unfav
A5: Workers' Compensation | B5: -3500000 | C5: - | D5: -3500000 | E5: -5100000 | F5: 700000 | G5: -4400000 | H5: -1800000 | I5: 200000 | J5: -1600000 | K5: -500000 | L5: 200000 | M5: -300000 | N5: - | O5: - | P5: - | Q5: -11100000 | R5: 100000 | S5: -11000000 | T5: -2300000 | U5: 400000 | V5: -1900000
A6: Commercial Automobile | B6: 1900000 | C6: 600000 | D6: 2500000 | E6: 2000000 | F6: 600000 | G6: 2600000 | H6: 2700000 | I6: 700000 | J6: 3400000 | K6: 3900000 | L6: 200000 | M6: 4100000 | N6: - | O6: - | P6: - | Q6: 6500000 | R6: 1400000 | S6: 7900000 | T6: 6600000 | U6: 900000 | V6: 7500000
A7: Commercial Multiple Peril | B7: -1100000 | C7: 1100000 | D7: 0 | E7: -2300000 | F7: 300000 | G7: -2000000 | H7: 100000 | I7: -800000 | J7: -700000 | K7: -4400000 | L7: 300000 | M7: -4100000 | N7: - | O7: - | P7: - | Q7: -5200000 | R7: 1200000 | S7: -4000000 | T7: -4300000 | U7: -500000 | V7: -4800000
A8: Other Property & Casualty | B8: 4200000 | C8: -900000 | D8: 3300000 | E8: 2600000 | F8: 1500000 | G8: 4100000 | H8: -1300000 | I8: 800000 | J8: -500000 | K8: 900000 | L8: 1200000 | M8: 2100000 | N8: - | O8: - | P8: - | Q8: 9600000 | R8: 500000 | S8: 10100000 | T8: -400000 | U8: 2000000 | V8: 1600000
A9: Total Commercial | B9: 1500000 | C9: 800000 | D9: 2300000 | E9: -2800000 | F9: 3100000 | G9: 300000 | H9: -300000 | I9: 900000 | J9: 600000 | K9: -100000 | L9: 1900000 | M9: 1800000 | N9: - | O9: - | P9: - | Q9: -200000 | R9: 3200000 | S9: 3000000 | T9: -400000 | U9: 2800000 | V9: 2400000
A10: Personal Automobile | B10: 2700000 | C10: 400000 | D10: 3100000 | E10: 2300000 | F10: 900000 | G10: 3200000 | H10: -700000 | I10: -300000 | J10: -1000000 | K10: -2600000 | L10: -400000 | M10: -3000000 | N10: - | O10: - | P10: - | Q10: 9700000 | R10: 700000 | S10: 10400000 | T10: -3300000 | U10: -700000 | V10: -4000000
A11: Homeowners | B11: -1000000 | C11: - | D11: -1000000 | E11: 100000 | F11: -100000 | G11: 0 | H11: 400000 | I11: -400000 | J11: 0 | K11: 1400000 | L11: -400000 | M11: 1000000 | N11: - | O11: - | P11: - | Q11: 300000 | R11: -300000 | S11: 0 | T11: 1800000 | U11: -800000 | V11: 1000000
A12: Personal Other | B12: - | C12: - | D12: - | E12: 100000 | F12: -100000 | G12: 0 | H12: 100000 | I12: -100000 | J12: 0 | K12: -300000 | L12: 100000 | M12: -200000 | N12: - | O12: - | P12: - | Q12: 100000 | R12: 0 | S12: 100000 | T12: -200000 | U12: 0 | V12: -200000
A13: Total Personal | B13: 1700000 | C13: 400000 | D13: 2100000 | E13: 2500000 | F13: 700000 | G13: 3200000 | H13: -200000 | I13: -800000 | J13: -1000000 | K13: -1500000 | L13: -700000 | M13: -2200000 | N13: - | O13: - | P13: - | Q13: 10100000 | R13: 400000 | S13: 10500000 | T13: -1700000 | U13: -1500000 | V13: -3200000
A14: Opus Investment Mgmt | B14: - | C14: - | D14: - | E14: - | F14: - | G14: - | H14: - | I14: - | J14: - | K14: - | L14: - | M14: - | N14: - | O14: - | P14: - | Q14: - | R14: - | S14: - | T14: - | U14: - | V14: -
A15: AMGRO-PROD | B15: - | C15: - | D15: - | E15: - | F15: - | G15: - | H15: - | I15: - | J15: - | K15: - | L15: - | M15: - | N15: - | O15: - | P15: - | Q15: - | R15: - | S15: - | T15: - | U15: - | V15: -
A16: VOLPROD | B16: -200000 | C16: - | D16: -200000 | E16: 400000 | F16: - | G16: 400000 | H16: 300000 | I16: 0 | J16: 300000 | K16: 300000 | L16: 100000 | M16: 400000 | N16: - | O16: - | P16: - | Q16: 200000 | R16: 700000 | S16: 900000 | T16: 600000 | U16: 100000 | V16: 700000
A17: CORP-OTHER | B17: - | C17: - | D17: - | E17: - | F17: - | G17: - | H17: - | I17: - | J17: - | K17: - | L17: - | M17: - | N17: - | O17: - | P17: - | Q17: - | R17: - | S17: - | T17: - | U17: - | V17: -
A18: OTHERP&C | B18: -200000 | C18: - | D18: -200000 | E18: 400000 | F18: - | G18: 400000 | H18: 300000 | I18: 0 | J18: 300000 | K18: 300000 | L18: 100000 | M18: 400000 | N18: - | O18: - | P18: - | Q18: 200000 | R18: 700000 | S18: 900000 | T18: 600000 | U18: 100000 | V18: 700000
A19: P&C Products | B19: -24800000 | C19: 1200000 | D19: -23600000 | E19: -22700000 | F19: 3800000 | G19: -18900000 | H19: -19800000 | I19: 100000 | J19: -19700000 | K19: -30500000 | L19: 1300000 | M19: -29200000 | N19: - | O19: - | P19: - | Q19: -61700000 | R19: 4300000 | S19: -57400000 | T19: -50300000 | U19: 1400000 | V19: -48900000

Sheet Proof-THG (hidden)
A2: Financial Highlights
A3: =FORMQTR&", "&VALUE(CV) -> 
E4: =CQ&"' "&RIGHT(CV,2) ->  | G4: =CQ&"' "&RIGHT(PV,2) ->  | L4: ="YTD"&" "&RIGHT(CV,2) ->  | N4: ="YTD"&" "&RIGHT(PV,2) -> 
B5: Page #'s | E5: Variance | G5: Variance | I5: Page #'s | L5: Variance | N5: Variance
A7: SEGMENT INCOME
A8: Property and Casualty
A9: Personal Lines | B9: 1 | C9: 9 | E9: =+#REF!-#REF! ->  | G9: =+#REF!-#REF! ->  | I9: =+$B$9 -> 1 | J9: 10 | L9: =+#REF!-#REF! ->  | N9: =+#REF!-#REF! -> 
A10: Commercial Lines | B10: =+B$9 -> 1 | C10: 9 | E10: =+#REF!-#REF! ->  | G10: =+#REF!-#REF! ->  | I10: =+$B$9 -> 1 | J10: =+J9 -> 10 | L10: =+#REF!-#REF! ->  | N10: =+#REF!-#REF! -> 
A11: Other | B11: 1 | C11: 9 | E11: =+#REF!-#REF! ->  | G11: =+#REF!-#REF! ->  | I11: =+$B$9 -> 1 | J11: =+J9 -> 10 | L11: =+#REF!-#REF! ->  | N11: =+#REF!-#REF! -> 
A12: Total Property and Casualty | B12: 1 | C12: 9 | E12: =+#REF!-#REF! ->  | G12: =+#REF!-#REF! ->  | I12: =+$B$9 -> 1 | J12: =+J9 -> 10 | L12: =+#REF!-#REF! ->  | N12: =+#REF!-#REF! -> 
A14: Life Companies | B14: =+B9 -> 1 | C14: 13 | E14: =+#REF!-#REF! ->  | G14: =+#REF!-#REF! ->  | I14: =+B9 -> 1 | J14: 13 | L14: =+#REF!-#REF! ->  | N14: =+#REF!-#REF! -> 
A16: Income Reconciliation
A17: Income from continuing operations, net of taxes | B17: =+B9 -> 1 | C17: 4 | E17: =+#REF!-'3'!C27 ->  | G17: =+#REF!-'3'!E27 ->  | I17: =+$B$17 -> 1 | J17: =+$C$17 -> 4 | L17: =+#REF!-'3'!I27 ->  | N17: =+#REF!-'3'!K27 -> 
A18: (Loss) Income from operations of discontinued FAFLIC
A19: business, net of taxes | B19: =+B$17 -> 1 | C19: =+C$17 -> 4 | E19: =+#REF!-'3'!C29 ->  | G19: =+#REF!-'3'!E29 ->  | I19: =+$B$17 -> 1 | J19: =+$C$17 -> 4 | L19: =+#REF!-'3'!I29 ->  | N19: =+#REF!-'3'!#REF! -> 
A20: Income from operations of AMGRO, net of taxes | B20: 1 | C20: 4 | E20: =+#REF!-'3'!#REF! ->  | G20: =+#REF!-'3'!#REF! ->  | I20: 1 | J20: 4 | L20: =+#REF!-'3'!#REF! ->  | N20: =+#REF!-'3'!#REF! -> 
A21: Gain on disposal of variable business | B21: =+B$17 -> 1 | C21: 4 | E21: =+#REF!-'3'!#REF! ->  | G21: =+#REF!-'3'!#REF! ->  | I21: 1 | J21: 4 | L21: =+#REF!-'3'!#REF! ->  | N21: =+#REF!-'3'!#REF! -> 
A22: Income before cumulative effect of accounting change | B22: 1 | C22: 4 | E22: =+#REF!-'3'!#REF! ->  | G22: =+#REF!-'3'!#REF! ->  | I22: 1 | J22: 4 | L22: =+#REF!-'3'!#REF! ->  | N22: =+#REF!-'3'!#REF! -> 
A23: Other | B23: 1 | C23: 4 | E23: =+#REF!-'3'!#REF! ->  | G23: =+#REF!-'3'!#REF! ->  | I23: 1 | J23: 4 | L23: =+#REF!-'3'!#REF! ->  | N23: =+#REF!-'3'!#REF! -> 
A24: Net (loss) income | B24: 1 | C24: 4 | E24: =+#REF!-'3'!C31 ->  | G24: =+#REF!-'3'!E31 ->  | I24: 1 | J24: 4 | L24: =+#REF!-'3'!I31 ->  | N24: =+#REF!-'3'!K31 -> 
A26: Shareholders' Equity
A27: The Hanover Insurance Company (consolidated) | B27: 3 | C27: 8 | E27: =+#REF!-#REF! ->  | G27: =+#REF!-#REF! ->  | I27: xxxxxxxxxx | J27: xxxxxxx | L27: xxxxxxxxxxx | N27: xxxxxxxxxxx
A28: First Allmerica Financial Life Ins Company (consolidated) | B28: =+B27 -> 3 | C28: 14 | E28: =+#REF!-#REF! ->  | G28: =+#REF!-#REF! ->  | I28: xxxxxxxxxx | J28: xxxxxxx | L28: xxxxxxxxxxx | N28: xxxxxxxxxxx
A29: THG Holding Company debt (1) | B29: =+B27 -> 3 | C29: PQ | E29: =+#REF!-#REF! ->  | G29: =+#REF!+499.5*1000000 ->  | I29: xxxxxxxxxx | J29: xxxxxxx | L29: xxxxxxxxxxx | N29: xxxxxxxxxxx
A30: Total shareholders' equity | B30: =+B27 -> 3 | C30: 6 | E30: =+#REF!-'4'!C45 ->  | G30: =+#REF!-'4'!E45 ->  | I30: xxxxxxxxxx | J30: xxxxxxx | L30: xxxxxxxxxxx | N30: xxxxxxxxxxx
A32: PER SHARE DATA (DILUTED):
A33: Income from continuing operations, net of taxes | B33: 2 | C33: 5 | E33: =+#REF!-#REF! ->  | G33: =+#REF!-#REF! ->  | I33: =+$B$33 -> 2 | J33: =+$C$33 -> 5 | L33: =+#REF!-#REF! ->  | N33: =+#REF!-#REF! -> 
A34: (Loss) Income from operations of discontinued FAFLIC
A35: business, net of taxes | B35: =+$B$33 -> 2 | C35: =+$C$33 -> 5 | E35: =+#REF!-#REF! ->  | G35: =+#REF!-#REF! ->  | I35: =+$B$33 -> 2 | J35: =+$C$33 -> 5 | L35: =+#REF!-#REF! ->  | N35: =+#REF!-#REF! -> 
A36: Income from operations of AMGRO, net of taxes | B36: =+$B$33 -> 2 | C36: =+$C$33 -> 5 | E36: =+#REF!-#REF! ->  | G36: =+#REF!-#REF! ->  | I36: =+$B$33 -> 2 | J36: =+$C$33 -> 5 | L36: =+#REF!-#REF! ->  | N36: =+#REF!-#REF! -> 
A37: Gain on disposal of variable business | B37: =+$B$33 -> 2 | C37: =+$C$33 -> 5 | E37: =+#REF!-#REF! ->  | G37: =+#REF!-#REF! ->  | I37: =+$B$33 -> 2 | J37: =+$C$33 -> 5 | L37: =+#REF!-#REF! ->  | N37: =+#REF!-#REF! -> 
A38: Other | B38: =+$B$33 -> 2 | C38: =+$C$33 -> 5 | E38: =+#REF!-#REF! ->  | G38: =+#REF!-#REF! ->  | I38: =+$B$33 -> 2 | J38: =+$C$33 -> 5 | L38: =+#REF!-#REF! ->  | N38: =+#REF!-#REF! -> 
A39: Cumulative effect of change in accounting
A40: principle, net of taxes | B40: =+$B$33 -> 2 | C40: =+$C$33 -> 5 | E40: =+#REF!-#REF! ->  | G40: =+#REF!-#REF! ->  | I40: =+$B$33 -> 2 | J40: =+$C$33 -> 5 | L40: =+#REF!-#REF! ->  | N40: =+#REF!-#REF! -> 
A41: Net income | B41: =+$B$33 -> 2 | C41: =+$C$33 -> 5 | E41: =+#REF!-#REF! ->  | G41: =+#REF!-#REF! ->  | I41: =+$B$33 -> 2 | J41: =+$C$33 -> 5 | L41: =+#REF!-#REF! ->  | N41: =+#REF!-#REF! -> 

Sheet Proof-BS (hidden)
A1: CONSOLIDATED BALANCE SHEETS
G2: THG
C3: THG | E3: P&C | G3: less P&C | I3: Ref # | K3: Variance | L3: Comments
A4: ASSETS | C4: SS Page #6 | E4: SS Page #8
A5: Investments:
A6: Fixed maturities, at fair value | C6: =+'4'!C10 -> 7378100000 | E6: =+#REF! ->  | G6: =+C6-E6 ->  | I6: 1 | K6: =SUM(G6)-SUM(#REF!) -> 
A7: =" Equity securities, at fair value" -> Equity securities, at fair value | C7: =+'4'!C11 -> 580800000 | E7: =+#REF! ->  | G7: =+C7-E7 ->  | I7: 2 | K7: =SUM(G7)-SUM(#REF!) ->  | L7: Rounding must go to P&C or Life
A8: Mortgage loans | C8: =+'4'!#REF! ->  | E8: =+#REF! ->  | G8: =+C8-E8 ->  | I8: 3 | K8: =SUM(G8)-SUM(#REF!) ->  | L8: ok - mtg elim
A9: Policy loans | C9: =+'4'!#REF! ->  | G9: =+C9-E9 ->  | I9: 4 | K9: =SUM(G9)-SUM(#REF!) -> 
A10: Other long-term investments | C10: =+'4'!C12 -> 291400000 | E10: =+#REF! ->  | G10: =+C10-E10 ->  | I10: 5 | K10: =SUM(G10)-SUM(#REF!) -> 
A11: Total investments | C11: =+'4'!C13 -> 8250300000 | E11: =+#REF! ->  | G11: xxxxxxxxxxxxxxxx
A12: Cash and cash equivalents | C12: =+'4'!C14 -> 373300000 | E12: =+#REF! ->  | G12: =+C12-E12 ->  | I12: 6 | K12: =SUM(G12)-SUM(#REF!) -> 
A13: Accrued investment income | C13: =+'4'!C15 -> 66900000 | E13: =+#REF! ->  | I13: 7 | K13: =SUM(G13)-SUM(#REF!) -> 
A14: Premiums, accounts and notes receivable, net | C14: =+'4'!C16 -> 1360900000 | E14: =+#REF! ->  | I14: 8 | K14: =SUM(G14)-SUM(#REF!) -> 
A15: Reinsurance receivable on paid and unpaid
A16: losses, benefits and unearned premiums | C16: =+'4'!C17 -> 2268200000 | E16: =+#REF! ->  | I16: 9 | K16: =SUM(G16)-SUM(#REF!) -> 
A17: Deferred policy acquistion costs | C17: =+'4'!C18 -> 525700000 | E17: =+#REF! ->  | I17: 10 | K17: =SUM(G17)-SUM(#REF!) -> 
A18: Deferred federal income taxes | C18: =+'4'!C19 -> 131200000 | E18: =+#REF! ->  | I18: 11 | K18: =SUM(G18)-SUM(#REF!) -> 
A19: Goodwill | C19: =+'4'!C20 -> 184600000 | E19: =+#REF! ->  | I19: 12 | K19: =SUM(G19)-SUM(#REF!) -> 
A20: Other assets | C20: =+'4'!C21 -> 486600000 | E20: =+#REF! ->  | I20: 13 | K20: =SUM(G20)-SUM(#REF!-#REF!-#REF!) -> 
A21: Separate account assets | C21: =+'4'!#REF! ->  | I21: n/a
A22: Total assets | C22: =+'4'!C23 -> 13759700000 | E22: =+#REF! ->  | G22: xxxxxxxxxxxxxxxx | K22: =SUM(K6:K20) -> 
A24: LIABILITIES AND SHAREHOLDERS' EQUITY
A26: LIABILITIES
A27: Policy liabilities and accruals:
A28: Future policy benefits | C28: =+'4'!#REF! ->  | G28: =+C28-E28 ->  | I28: 14 | K28: =SUM(G28)+SUM(#REF!) -> 
A29: Outstanding claims, losses and loss adjustment expenses | C29: =+'4'!C28 -> 6391700000 | E29: =+#REF! ->  | G29: =+C29-E29 ->  | I29: 15 | K29: =SUM(G29)+SUM(#REF!) -> 
A30: Unearned premiums | C30: =+'4'!C29 -> 2583900000 | E30: =+#REF! ->  | G30: =+C30-E30 ->  | I30: 16 | K30: =SUM(G30)+SUM(#REF!) -> 
A31: Contractholder deposit funds and other policy liabilities | C31: =+'4'!#REF! ->  | E31: =+#REF! ->  | G31: =+C31-E31 ->  | I31: 17 | K31: =SUM(G31)+SUM(#REF!) -> 
A32: Total policy liabilities and accruals | C32: =+'4'!#REF! ->  | E32: =+#REF! ->  | G32: xxxxxxxxxxxxxxxx
A33: Expenses and taxes payable | C33: =+'4'!C30 -> 695400000 | E33: =+#REF! ->  | G33: =+C33-E33 ->  | I33: 18 | K33: =SUM(G33)+SUM(#REF!+#REF!) ->  | L33: Rounding is okay here.
A34: Reinsurance premiums payable | C34: =+'4'!C31 -> 226800000 | E34: =+#REF! ->  | G34: =+C34-E34 ->  | I34: 19 | K34: =SUM(G34)+SUM(#REF!) -> 
A35: Trust instruments supported by funding obligations | C35: =+'4'!#REF! ->  | G35: =+C35-E35 ->  | I35: 20 | K35: =SUM(G35)+SUM(#REF!) -> 
A36: Long-term debt | C36: =+'4'!C32 -> 903500000 | E36: =#REF! ->  | G36: =+C36-E36 ->  | I36: 21 | K36: =SUM(G36)+SUM(#REF!) ->  | L36: PDI
A37: Separate account liabilities | C37: =+'4'!#REF! ->  | G37: =+C37-E37 ->  | I37: 22 | K37: =SUM(G37)+SUM(#REF!) -> 
A38: Total liabilities | C38: =+'4'!C34 -> 10915700000 | E38: =+#REF! ->  | G38: xxxxxxxxxxxxxxxx
A40: SHAREHOLDERS' EQUITY
A41: Preferred stock, par value $xx per share;
A42: authorized xxx million shares; issued none | C42: =+'4'!C38 -> 0 | G42: =+C42-E42 -> 0 | I42: 23 | K42: =SUM(G42)+SUM(#REF!) -> 
A43: Common stock, par value $.xx per share; authorized xxx.0 million
A44: =" shares; issued" -> shares; issued | C44: =+'4'!C40 -> 600000 | E44: =+#REF! ->  | I44: 24 | K44: =SUM(G44)+SUM(#REF!) -> 
A45: Additional paid-in capital | C45: =+'4'!C41 -> 1830700000 | E45: =+#REF! ->  | I45: 25 | K45: =SUM(G45)+SUM(#REF!+#REF!) -> 
A46: Accumulated other comprehensive (loss) income | C46: =+'4'!C42 -> 206400000 | E46: =+#REF! ->  | I46: 26 | K46: =SUM(G46)+SUM(#REF!) ->  | L46: rounding ok here…assume variance is other P&C
A47: Retained earnings | C47: =+'4'!C43 -> 1558700000 | E47: =+#REF! ->  | I47: 27 | K47: =SUM(G47)+SUM(#REF!) ->  | L47: rounding ok here…assume variance is other P&C
A48: ="Treasury stock at cost" -> Treasury stock at cost | C48: =+'4'!C44 -> -752400000 | G48: -752400000 | I48: 28 | K48: =SUM(G48)+SUM(#REF!) -> 
A49: Total shareholders' equity | C49: =+'4'!C45 -> 2844000000 | E49: =+#REF! ->  | G49: xxxxxxxxxxxxxxxx
A50: Total liabilities and shareholders' equity | C50: =+'4'!C46 -> 13759700000 | E50: =+#REF! ->  | G50: xxxxxxxxxxxxxxxx
D55: = Items highlighted are not applicable to the individual business unit noted.
D57: = Items that should be zero (no reconciliation necessary).

Sheet BS Retrieve (hidden)
B1: BOOK TYPE | C1: Product Qualifier | D1: Corporate-Capacity | E1: 2010 Non Rounded | F1: =CY ->  | G1: All Products
B2: SMAFCO Consolidated | C2: Campania Consolidated | D2: Verlan Consolidated | E2: Benchmark Professionals Ins Svcs | F2: Educators Insurance Agency, Inc. | G2: Benchmark Purchasing Acctg Adj | H2: The Hanover Insurance Group Total | J2: Rounded
A3: Fixed Maturities | B3: 4581634875 | C3: 0 | D3: - | E3: - | F3: - | G3: - | H3: =SUM(B3:G3) -> 4581634875 | J3: =ROUND((H3+H4),) -> 4586400000
A4: S.T. Fixed Maturities | B4: 4803100.91 | C4: - | D4: 0 | E4: - | F4: - | G4: - | H4: 4803100.91
A5: Equity Securities | B5: 124677939.7 | C5: - | D5: - | E5: - | F5: - | G5: - | H5: 124677939.7 | J5: =+H5 -> 124700000
A6: Mortgage Loans Receivable | B6: 5665879.3 | C6: - | D6: - | E6: - | F6: - | G6: - | H6: 5665879.3 | J6: =+H6 -> 5700000
A7: Policy Loans Receivable | B7: - | C7: - | D7: - | E7: - | F7: - | G7: - | H7: 0 | J7: =+H7 -> 0
A8: Real Estate | B8: 8872141.81 | C8: - | D8: - | E8: - | F8: - | G8: - | H8: 8872141.81 | J8: =+H8+H9 -> 31900000
A9: Other Long Term Investments | B9: 23031525.02 | C9: - | D9: - | E9: - | F9: - | G9: - | H9: 23031525.02
A10: Cash & Cash Equivalents | B10: 235154256.1 | C10: 832049.63 | D10: 1538081.32 | E10: 133440.12 | F10: 1604867.52 | G10: - | H10: 239262694.7 | J10: =+H10 -> 239300000
A11: Accrued Investment Income Receivable | B11: 50705359.14 | C11: 0 | D11: 0 | E11: - | F11: - | G11: - | H11: 50705359.14 | J11: 50700000
A12: Premiums, Accounts, & Notes Receivable | B12: 807813790.6 | C12: 27205.66 | D12: - | E12: -6754.78 | F12: 188223.02 | G12: - | H12: 808022464.5 | J12: 808000000
A13: Total Reinsurance Receivables | B13: 1230299516 | C13: - | D13: - | E13: - | F13: - | G13: - | H13: 1230299516 | J13: 1230300000
A14: Deferred Policy Acquistion Costs | B14: 347163997.5 | C14: - | D14: - | E14: - | F14: - | G14: - | H14: 347163997.5 | J14: 347200000
A15: Deferred FIT | B15: - | C15: - | D15: - | E15: - | F15: - | G15: - | H15: 0 | J15: 0
A16: Deferred FIT Asset | B16: 119114560 | C16: 44367.91 | D16: -69038.63 | E16: - | F16: -0.01 | G16: -300437.22 | H16: 118789452 | J16: 118800000
A17: Goodwill | B17: 176180464.4 | C17: - | D17: 2572667.64 | E17: - | F17: 194000 | G17: 428228 | H17: 179375360 | J17: 179400000
A18: Property & Equipment | B18: 95925543.32 | C18: 164253.29 | D18: - | E18: - | F18: - | G18: - | H18: 96089796.61 | J18: =ROUND((H18+H21),-1) -> 375300000
A19: Other Assets (Receivable) | B19: 446477822.9 | C19: 74291.66 | D19: 3628827.04 | E19: 12857.22 | F19: 7150000 | G19: 1286620.86 | H19: 458630419.7
A20: Goodwill | B20: 176180464.4 | C20: - | D20: 2572667.64 | E20: - | F20: 194000 | G20: 428228 | H20: 179375360 | J20: =+H20 -> 179400000
H21: =SUM(H19)-SUM(H20) -> 279255059.7
A22: Assets of Discontinued Operations | B22: 134127301.2 | C22: - | D22: - | E22: - | F22: - | G22: - | H22: =SUM(B22:G22) -> 134127301.2 | J22: =+H22 -> 134100000
A23: ASSET | B23: 8215467608 | C23: 1142168.15 | D23: 5097869.73 | E23: 139542.56 | F23: 8943090.53 | G23: 986183.64 | H23: =SUM(B23:G23) -> 8231776463 | J23: =+H23 -> 8231800000
A27: Future Policy Benefits Payable | B27: - | C27: - | D27: - | E27: - | F27: - | G27: - | H27: =SUM(B27:G27) -> 0 | J27: =+H27 -> 0
A28: Outstanding Claims, Losses & LAE | B28: -3230006825 | C28: - | D28: - | E28: - | F28: - | G28: - | H28: -3230006825 | J28: =ROUND((H28+H30),) -> -3232100000
A29: Unearned Premiums Payable | B29: -1553550176 | C29: - | D29: - | E29: - | F29: - | G29: - | H29: -1553550176 | J29: =+H29 -> -1553600000
A30: Other Policy Funds & Liabilities | B30: -2087722.36 | C30: - | D30: - | E30: - | F30: - | G30: - | H30: -2087722.36
A31: Expenses & Taxes Payable | B31: -508976097.9 | C31: 82531.2 | D31: -1320768.68 | E31: -44886.96 | F31: -1505943.53 | G31: - | H31: -511765165.9 | J31: =ROUND((H31+H32),-1) -> -524800000
A32: Net Inter-Company | B32: -12824542.93 | C32: 41510.43 | D32: -85008.61 | E32: -33382.05 | F32: -139918.17 | G32: - | H32: -13041341.33
A33: Reinsurance Premiums Payable | B33: -33172296.41 | C33: - | D33: - | E33: - | F33: - | G33: - | H33: -33172296.41 | J33: =+H33 -> -33200000
A34: Trust Instruments Supported by Funding Obligations | B34: - | C34: - | D34: - | E34: - | F34: - | G34: - | H34: 0 | J34: 0
A35: Long-Term Debt | B35: -154045837.2 | C35: 0 | D35: - | E35: - | F35: - | G35: - | H35: -154045837.2 | J35: -154000000
A36: Deferred FIT | B36: - | C36: - | D36: - | E36: - | F36: - | G36: - | H36: 0 | J36: 0
A37: Separate Account Liabilities | B37: - | C37: - | D37: - | E37: - | F37: - | G37: - | H37: 0 | J37: 0
A38: Liabilities of Discontinued Operations | B38: -135253959.5 | C38: - | D38: - | E38: - | F38: - | G38: - | H38: -135253959.5 | J38: -135300000
A39: LIABILITY | B39: -5629917457 | C39: 124041.63 | D39: -1405777.29 | E39: -78269.01 | F39: -1645861.7 | G39: - | H39: -5632923323 | J39: -5632900000
A41: Capital Stock Preferred | B41: 0 | C41: - | D41: - | E41: - | F41: - | G41: - | H41: =SUM(B41:G41) -> 0 | J41: =+H41 -> 0
A42: Capital Stock Common | B42: -1045.22 | C42: 574617.84 | D42: 0 | E42: - | F42: -1000 | G42: - | H42: 572572.62 | J42: 600000
A43: Additional Paid-In Capital | B43: -786608243.4 | C43: -2585520.98 | D43: -21240437.78 | E43: - | F43: -7150000 | G43: -1063928 | H43: -818648130.1 | J43: -818600000
A44: Treasury Stock Additional Paid-In Capital | B44: - | C44: - | D44: - | E44: - | F44: - | G44: - | H44: 0 | J44: 0
A45: Unrealized Capital Gains(Losses) | B45: -164926688.3 | C45: - | D45: 0.08 | E45: - | F45: 0.01 | G45: - | H45: -164926688.2 | J45: -164900000
A46: Retained Earnings | B46: -1634014175 | C46: 744693.36 | D46: 17548345.26 | E46: -61273.55 | F46: -146228.84 | G46: 77744.36 | H46: -1615850894 | J46: -1615900000
A47: Treasury Stock | B47: 0 | C47: - | D47: - | E47: - | F47: - | G47: - | H47: 0 | J47: 0
A48: Total Stockholders Equity | B48: -2585550152 | C48: -1266209.78 | D48: -3692092.44 | E48: -61273.55 | F48: -7297228.83 | G48: -986183.64 | H48: -2598853140 | J48: -2598900000

Sheet Essbase - P&C BS (hidden)
B1: BOOK TYPE | C1: Product Qualifier | D1: Corporate-Capacity | F1: 2010 Non Rounded | G1: =CY ->  | H1: All Products
B2: SMAFCO Consolidated | C2: Campania Consolidated | D2: Verlan Consolidated | E2: Educators Insurance Agency, Inc. | F2: Benchmark Professionals Ins Svcs | G2: Benchmark Purchasing Acctg Adj | H2: The Hanover Insurance Group Total | J2: Rounded
A3: Fixed Maturities | B3: 4409339434 | C3: 0 | D3: - | E3: - | F3: - | G3: - | H3: =SUM(B3:G3) -> 4409339434 | J3: =ROUND((H3+H4),) -> 4417300000
A4: S.T. Fixed Maturities | B4: 7935675.6 | C4: - | D4: 0 | E4: - | F4: - | G4: - | H4: 7935675.6
A5: Equity Securities | B5: 127623741.8 | C5: - | D5: - | E5: - | F5: - | G5: - | H5: 127623741.8 | J5: =+H5 -> 127600000
A6: Mortgage Loans Receivable | B6: 5454367.29 | C6: - | D6: - | E6: - | F6: - | G6: - | H6: 5454367.29 | J6: =+H6 -> 5500000
A7: Policy Loans Receivable | B7: - | C7: - | D7: - | E7: - | F7: - | G7: - | H7: 0 | J7: =+H7 -> 0
A8: Real Estate | B8: 10384960.28 | C8: - | D8: - | E8: - | F8: - | G8: - | H8: 10384960.28
A9: Other Long Term Investments | B9: 23585156.47 | C9: - | D9: - | E9: - | F9: - | G9: - | H9: 23585156.47 | J9: =ROUND((H9+H8),-1) -> 34000000
A10: Cash & Cash Equivalents | B10: 218869711 | C10: 522117.91 | D10: 1530130.83 | E10: 1471047.1 | F10: 64741.73 | G10: - | H10: 222457748.6 | J10: =+H10 -> 222500000
A11: Accrued Investment Income Receivable | B11: 50428063.94 | C11: 0 | D11: 0 | E11: - | F11: - | G11: - | H11: 50428063.94 | J11: =+H11 -> 50400000
A12: Premiums, Accounts, & Notes Receivable | B12: 770447419.3 | C12: 37308.84 | D12: - | E12: 217709.27 | F12: 0 | G12: - | H12: 770702437.4 | J12: =+H12 -> 770700000
A13: Future Policy Benefits Receivable | B13: - | C13: - | D13: - | E13: - | F13: - | G13: -
A14: OSL-LIFEADJ | B14: - | C14: - | D14: - | E14: - | F14: - | G14: -
A15: OSL-PCADJ | B15: 1064780707 | C15: - | D15: - | E15: - | F15: - | G15: -
A16: Outstanding Claims, Losses, & LAE Receivable | B16: 1064780707 | C16: - | D16: - | E16: - | F16: - | G16: -
A17: UNPREM-PC | B17: 77849755.52 | C17: - | D17: - | E17: - | F17: - | G17: -
A18: UNPREM-LIFE | B18: - | C18: - | D18: - | E18: - | F18: - | G18: -
A19: Unearned Premiums Receivable | B19: 77849755.52 | C19: - | D19: - | E19: - | F19: - | G19: -
A20: Exhibit8-FG LIAB Reclass | B20: - | C20: - | D20: - | E20: - | F20: - | G20: -
A21: Reinsurance Recoverables | B21: 1119102937 | C21: - | D21: - | E21: - | F21: - | G21: -
A22: ORR-PCADJ | B22: -1064780707 | C22: - | D22: - | E22: - | F22: - | G22: -
A23: Ceded Reinsurance Recover Affiliates | B23: 5613938.74 | C23: - | D23: - | E23: - | F23: - | G23: -
A24: Ceded Reinsurance Receivable | B24: 0 | C24: - | D24: - | E24: - | F24: - | G24: -
A25: Group Conv Charges Receivable | B25: - | C25: - | D25: - | E25: - | F25: - | G25: -
A26: Amounts Recoverable On Reinsurance | B26: 0 | C26: - | D26: - | E26: - | F26: - | G26: -
A27: Commission & Expense Allowance Due-Reinsurance | B27: 1708850.17 | C27: - | D27: - | E27: - | F27: - | G27: -
A28: Experience Refund Receivable | B28: - | C28: - | D28: - | E28: - | F28: - | G28: -
A29: Other Reinsurance Receivable | B29: 61645018.77 | C29: - | D29: - | E29: - | F29: - | G29: -
A30: Total Reinsurance Receivables | B30: 1204275482 | C30: - | D30: - | E30: - | F30: - | G30: - | H30: =SUM(B30:G30) -> 1204275482 | J30: =+H30 -> 1204300000
A31: Deferred Policy Acquistion Costs | B31: 346674708.1 | C31: - | D31: - | E31: - | F31: - | G31: - | H31: 346674708.1 | J31: =+H31 -> 346700000
A32: Deferred FIT | B32: - | C32: - | D32: - | E32: - | F32: - | G32: - | H32: 0 | J32: =+H32 -> 0
A33: Deferred FIT Asset | B33: 154785750.8 | C33: 17960.91 | D33: -48826.13 | E33: -0.01 | F33: - | G33: -286483.06 | H33: 154468402.5 | J33: =+H33 -> 154500000
A34: Goodwill | B34: 175772914.4 | C34: - | D34: 2572667.64 | E34: 194000 | F34: - | G34: 428228 | H34: 178967810 | J34: =+H34 -> 179000000
A35: Property & Equipment | B35: 96621651.56 | C35: 0 | D35: - | E35: - | F35: - | G35: - | H35: 96621651.56 | J35: =ROUND((H35+H38),-1) -> 402100000
A36: Other Assets (Receivable) | B36: 473547849.5 | C36: 66713.56 | D36: 3201496.91 | E36: 6421447 | F36: 9642.96 | G36: 1246751.82 | H36: 484493901.8
A37: Goodwill | B37: 175772914.4 | C37: - | D37: 2572667.64 | E37: 194000 | F37: - | G37: 428228 | H37: 178967810 | J37: =+H37 -> 179000000
H38: =SUM(H36)-SUM(H37) -> 305526091.7
A39: Assets of Discontinued Operations | B39: 133633081.8 | C39: - | D39: - | E39: - | F39: - | G39: - | H39: =SUM(B39:G39) -> 133633081.8 | J39: =+H39 -> 133600000
A40: ASSET | B40: 8033607053 | C40: 644101.22 | D40: 4682801.61 | E40: 8110203.36 | F40: 74384.69 | G40: 960268.76 | H40: =SUM(B40:G40) -> 8048078812 | J40: =+H40 -> 8048100000
A44: Future Policy Benefits Payable | B44: - | C44: - | D44: - | E44: - | F44: - | G44: - | H44: =SUM(B44:G44) -> 0 | J44: =-H44 -> 0
A45: Outstanding Claims, Losses & LAE | B45: -3227564281 | C45: - | D45: - | E45: - | F45: - | G45: - | H45: -3227564281 | J45: =-ROUND((H45+H47),) -> 3229400000
A46: Unearned Premiums Payable | B46: -1522745682 | C46: - | D46: - | E46: - | F46: - | G46: - | H46: -1522745682 | J46: =-H46 -> 1522700000
A47: Other Policy Funds & Liabilities | B47: -1846090.61 | C47: - | D47: - | E47: - | F47: - | G47: - | H47: -1846090.61
A48: Expenses & Taxes Payable | B48: -451059498.9 | C48: 475424.94 | D48: -928965.21 | E48: -1157979.34 | F48: -321.41 | G48: - | H48: -452671340 | J48: =-ROUND((H48+H49),-1) -> 465500000
A49: Net Inter-Company | B49: -12759281.74 | C49: 111058.69 | D49: -67662.17 | E49: -80006.95 | F49: -14248.73 | G49: - | H49: -12810140.9
A50: Reinsurance Premiums Payable | B50: -33941820.22 | C50: - | D50: - | E50: - | F50: - | G50: - | H50: -33941820.22 | J50: =-H50 -> 33900000
A51: Trust Instruments Supported by Funding Obligations | B51: - | C51: - | D51: - | E51: - | F51: - | G51: - | H51: 0 | J51: 0
A52: Long-Term Debt | B52: -156008511 | C52: 0 | D52: - | E52: - | F52: - | G52: - | H52: -156008511 | J52: 156000000
A53: Deferred FIT | B53: - | C53: - | D53: - | E53: - | F53: - | G53: - | H53: 0 | J53: 0
A54: Separate Account Liabilities | B54: - | C54: - | D54: - | E54: - | F54: - | G54: - | H54: 0 | J54: 0
A55: Liabilities of Discontinued Operations | B55: -129400337.6 | C55: - | D55: - | E55: - | F55: - | G55: - | H55: -129400337.6 | J55: 129400000
A56: LIABILITY | B56: -5535325503 | C56: 586483.63 | D56: -996627.38 | E56: -1237986.29 | F56: -14570.14 | G56: - | H56: -5536988204 | J56: 5537000000
A58: Capital Stock Preferred | B58: 0 | C58: - | D58: - | E58: - | F58: - | G58: - | H58: =SUM(B58:G58) -> 0 | J58: =-H58 -> 0
A59: Capital Stock Common | B59: -1045.22 | C59: 574617.84 | D59: 0 | E59: -1000 | F59: - | G59: - | H59: 572572.62 | J59: -600000
A60: Additional Paid-In Capital | B60: -786608243.4 | C60: -2585520.98 | D60: -21240437.78 | E60: -7150000 | F60: - | G60: -1063928 | H60: -818648130.1 | J60: 818600000
A61: Treasury Stock Additional Paid-In Capital | B61: - | C61: - | D61: - | E61: - | F61: - | G61: - | H61: 0 | J61: 0
A62: Unrealized Capital Gains(Losses) | B62: -97235801.53 | C62: - | D62: 0.08 | E62: 0.01 | F62: - | G62: - | H62: -97235801.44 | J62: 97200000
A63: Retained Earnings | B63: -1614436459 | C63: 780318.29 | D63: 17554263.47 | E63: 278782.92 | F63: -59814.55 | G63: 103659.24 | H63: -1595779250 | J63: 1595800000
A64: Treasury Stock | B64: 0 | C64: - | D64: - | E64: - | F64: - | G64: - | H64: 0 | J64: 0
A65: Total Stockholders Equity | B65: -2498281549 | C65: -1230584.85 | D65: -3686174.23 | E65: -6872217.07 | F65: -59814.55 | G65: -960268.76 | H65: -2511090609 | J65: 2511100000

Sheet Proof-P&C (hidden)
A2: Property and Casualty
A3: =FORMQTR&", "&VALUE(CV) -> 
E4: =CQ&"' "&RIGHT(CV,2) ->  | G4: =CQ&"' "&RIGHT(PV,2) ->  | L4: ="YTD"&" "&RIGHT(CV,2) ->  | N4: ="YTD"&" "&RIGHT(PV,2) -> 
B5: Page #'s | E5: Variance | G5: Variance | I5: Page #'s | L5: Variance | N5: Variance
A7: Net investment income | B7: 7 | C7: 9 | E7: =+#REF!-#REF! ->  | G7: =+#REF!-#REF! ->  | I7: 7 | J7: 10 | L7: =+#REF!-#REF! ->  | N7: =+#REF!-#REF! -> 
A9: Segment Income Before Taxes:
A10: Personal Lines | B10: 1 | C10: 9 | E10: =+#REF!-#REF! ->  | G10: =+#REF!-#REF! ->  | I10: =+B10 -> 1 | J10: 10 | L10: =+#REF!-#REF! ->  | N10: =+#REF!-#REF! -> 
A11: Commercial Lines | B11: 1 | C11: =+C$10 -> 9 | E11: =+#REF!-#REF! ->  | G11: =+#REF!-#REF! ->  | I11: 1 | J11: =+J10 -> 10 | L11: =+#REF!-#REF! ->  | N11: =+#REF!-#REF! -> 
A12: Other P&C | B12: 1 | C12: =+C$10 -> 9 | E12: =+#REF!-#REF! ->  | G12: =+#REF!-#REF! ->  | I12: 1 | J12: =+J10 -> 10 | L12: =+#REF!-#REF! ->  | N12: =+#REF!-#REF! -> 
A13: Total P&C segment income | B13: 1 | C13: =+C$10 -> 9 | E13: =+#REF!-#REF! ->  | G13: =+#REF!-#REF! ->  | I13: 1 | J13: =+J10 -> 10 | L13: =+#REF!-#REF! ->  | N13: =+#REF!-#REF! -> 
A15: Segment income before taxes | B15: =+C7 -> 9 | C15: =+C10 -> 9 | E15: =+#REF!-#REF! ->  | G15: =+#REF!-#REF! ->  | I15: =+B15 -> 9 | J15: =+J10 -> 10 | L15: =+#REF!-#REF! ->  | N15: =+#REF!-#REF! -> 
A17: GAAP to Stat: Prior year reserve development:
A18: Personal auto | B18: =+C10 -> 9 | C18: Calc 20 | E18: =+#REF!-#REF! ->  | G18: =+#REF!-#REF! ->  | I18: =+J10 -> 10 | J18: calc 21 | L18: =+#REF!-#REF! ->  | N18: =+#REF!-#REF! -> 
A19: Homeowners | B19: =+B$18 -> 9 | C19: Calc 20 | E19: =+#REF!-#REF! ->  | G19: =+#REF!-#REF! ->  | I19: =+I$18 -> 10 | J19: calc 21 | L19: =+#REF!-#REF! ->  | N19: =+#REF!-#REF! -> 
A20: Other personal | B20: 9 | C20: Calc 20 | E20: =+#REF!-#REF! ->  | G20: =+#REF!-#REF! ->  | I20: 10 | J20: calc 21 | L20: =+#REF!-#REF! ->  | N20: =+#REF!-#REF! -> 
A21: Total personal | B21: 9 | C21: Calc 20 | E21: =+#REF!-#REF! ->  | G21: =+#REF!-#REF! ->  | I21: 10 | J21: calc 21 | L21: =+#REF!-#REF! ->  | N21: =+#REF!-#REF! -> 
A23: Workers compensation | B23: =+B$18 -> 9 | C23: Calc 20 | E23: =+#REF!-#REF! ->  | G23: =+#REF!-#REF! ->  | I23: =+I$18 -> 10 | J23: calc 21 | L23: =+#REF!-#REF! ->  | N23: =+#REF!-#REF! -> 
A24: Commercial Automobile | B24: 9 | C24: Calc 20 | E24: =+#REF!-#REF! ->  | G24: =+#REF!-#REF! ->  | I24: 10 | J24: calc 21 | L24: =+#REF!-#REF! ->  | N24: =+#REF!-#REF! -> 
A25: Commercial multiple peril | B25: 9 | C25: Calc 20 | E25: =+#REF!-#REF! ->  | G25: =+#REF!-#REF! ->  | I25: 10 | J25: calc 21 | L25: =+#REF!-#REF! ->  | N25: =+#REF!-#REF! -> 
A26: Other commercial lines | B26: 9 | C26: Calc 20 | E26: =+#REF!-#REF! ->  | G26: =+#REF!-#REF! ->  | I26: 10 | J26: calc 21 | L26: =+#REF!-#REF! ->  | N26: =+#REF!-#REF! -> 
A27: Total commericial | B27: 9 | C27: Calc 20 | E27: =+#REF!-#REF! ->  | G27: =+#REF!-#REF! ->  | I27: 10 | J27: calc 21 | L27: =+#REF!-#REF! ->  | N27: =+#REF!-#REF! -> 
A29: Other property and casualty | B29: =+B$18 -> 9 | C29: =+C$18 -> Calc 20 | E29: =+#REF!-#REF! ->  | G29: =+#REF!-#REF! ->  | I29: =+I$18 -> 10 | J29: =+J$18 -> calc 21 | L29: =+#REF!-#REF! ->  | N29: =+#REF!-#REF! -> 
A31: Total Property and Casualty | B31: =+B$18 -> 9 | C31: =+C$18 -> Calc 20 | E31: =+#REF!-#REF! ->  | G31: =+#REF!-#REF! ->  | I31: =+I$18 -> 10 | J31: =+J$18 -> calc 21 | L31: =+#REF!-#REF! ->  | N31: =+#REF!-#REF! -> 
A33: Net premiums written | B33: 7 | C33: 9 | E33: =+#REF!-#REF! ->  | G33: =+#REF!-#REF! ->  | I33: 7 | J33: 10 | L33: =+#REF!-#REF! ->  | N33: =+#REF!-#REF! -> 
A34: Net premiums earned | B34: =+B33 -> 7 | C34: =+C33 -> 9 | E34: =+#REF!-#REF! ->  | G34: =+#REF!-#REF! ->  | I34: =+I33 -> 7 | J34: =+J33 -> 10 | L34: =+#REF!-#REF! ->  | N34: =+#REF!-#REF! -> 
A35: Other Income | B35: =+B33 -> 7 | C35: =+C33 -> 9 | E35: =+#REF!-#REF! ->  | G35: =+#REF!-#REF! ->  | I35: =+I33 -> 7 | J35: =+J33 -> 10 | L35: =+#REF!-#REF! ->  | N35: =+#REF!-#REF! -> 
A36: Policy benefits, claims, losses and LAE | B36: =+B33 -> 7 | C36: =+C33 -> 9 | E36: =+#REF!-#REF!-#REF!-#REF!-#REF!-#REF!-#REF! ->  | G36: =+#REF!-#REF!-#REF!-#REF!-#REF!-#REF!-#REF! ->  | I36: =+I33 -> 7 | J36: =+J33 -> 10 | L36: =+#REF!-#REF!-#REF!-#REF!-#REF!-#REF!-#REF! ->  | N36: =+#REF!-#REF!-#REF!-#REF!-#REF!-#REF!-#REF! -> 
A37: Policy acquisition and other op ex | B37: =+B33 -> 7 | C37: =+C33 -> 9 | E37: =+#REF!+#REF!-#REF!+#REF! ->  | G37: =+#REF!+#REF!-#REF!+#REF! ->  | I37: =+I33 -> 7 | J37: =+J33 -> 10 | L37: =+#REF!+#REF!-#REF!+#REF! ->  | N37: =+#REF!+#REF!-#REF!+#REF! -> 

Sheet Proof-Inv. (hidden)
A2: Investments
A3: =FORMQTR&", "&VALUE(CV) -> 
K4: =CQ&"' "&RIGHT(CV,2) ->  | M4: =CQ&"' "&RIGHT(PV,2) ->  | R4: ="YTD"&" "&RIGHT(CV,2) ->  | T4: ="YTD"&" "&RIGHT(PV,2) -> 
H5: Page #'s | K5: Variance | M5: Variance | O5: Page #'s | R5: Variance | T5: Variance | V5: Notes
A6: Net Investment Income: | V6: Uses retrieves to verify the NII for the period.
A7: Total Company | H7: 4 | I7: 13, 14-Q1 | K7: =+'3'!C11-'17'!#REF! ->  | M7: =+'3'!E11-'17'!N13 -> 68100000 | O7: 4 | P7: 13 | R7: =+'3'!I11-'17'!#REF! ->  | T7: =+'3'!K11-'17'!N13 -> 269000000
C8: =CY ->  | E8: =CY ->  | G8: =CY -> 
C9: =VALUE(CV)&" Actuals" ->  | E9: =VALUE(CV)&" Actuals" ->  | G9: =VALUE(PV)&" Actuals" -> 
C10: Net Investment Income- | E10: Net Investment Income- | G10: Net Investment Income-
C11: GAAP | E11: GAAP | G11: GAAP
C12: Product Qualifier | E12: Product Qualifier | G12: Product Qualifier
C13: Corporate-Capacity | E13: Corporate-Capacity | G13: Corporate-Capacity
C14: THG Consolidated | E14: THG Consolidated | G14: THG Consolidated
B15: Corporate Segment | C15: - | D15: Eliminations | E15: 0 | F15: Eliminations | G15: 0
C16: =(+C15)*-1 -> 
A18: Property and Casualty | H18: xxxxxxxxx | I18: xxxxxxxxx | K18: xxxxxxxxxxxxx | M18: xxxxxxxxxxxxx | O18: 5 | P18: =+P7 -> 13 | R18: =+#REF!-'17'!#REF!-'Proof-Inv.'!E15+'Proof-Inv.'!C16 ->  | T18: =+#REF!/1000000-'Proof-Inv.'!G15/1000000+'17'!N13/10000000 ->  | V18: P&C plus corp seg less elims = page 19
A19: Life Companies | H19: xxxxxxxxx | I19: xxxxxxxxx | K19: xxxxxxxxxxxxx | M19: xxxxxxxxxxxxx | O19: 12 | P19: =+P7 -> 13 | R19: =+#REF!-'17'!#REF! ->  | T19: =+#REF!-'17'!#REF! -> 
A21: Net realized investment gains | H21: =+O7 -> 4 | I21: 14 | K21: =+'3'!C12-#REF!*1000000 ->  | M21: =+'3'!E12-#REF!*1000000 ->  | O21: =+H21 -> 4 | P21: 14 | R21: =+'3'!I12-#REF!*1000000 ->  | T21: =+'3'!K12-#REF!*1000000 -> 
A23: Fixed maturities amortized cost:
A24: Life companies | H24: xxxxxxxxx | I24: xxxxxxxxx | K24: xxxxxxxxxxxxx | M24: xxxxxxxxxxxxx | O24: OLD14 | P24: 16 | R24: =+#REF!-'19'!#REF! ->  | T24: n/a
A25: Total | H25: xxxxxxxxx | I25: xxxxxxxxx | K25: xxxxxxxxxxxxx | M25: xxxxxxxxxxxxx | O25: 6 | P25: 16 | R25: =+#REF!-'19'!#REF! ->  | T25: =+#REF!-'19'!#REF! -> 
A27: Fixed maturities fair value:
A28: Life companies | H28: xxxxxxxxx | I28: xxxxxxxxx | K28: xxxxxxxxxxxxx | M28: xxxxxxxxxxxxx | O28: OLD14 | P28: 16 | R28: =+#REF!-'19'!#REF!*1000000 ->  | T28: n/a
A29: Total | H29: xxxxxxxxx | I29: xxxxxxxxx | K29: xxxxxxxxxxxxx | M29: xxxxxxxxxxxxx | O29: 6 | P29: 16 | R29: =+'4'!C10-('19'!#REF!-'19'!#REF!)*1000000 ->  | T29: =+'4'!E10-'19'!#REF!*1000000 -> 
A32: updated 08/03/2006 by SHA
A33: updated 7/24/08 by JPH

Sheet Proof-History (hidden)
A2: Historical Financial Highlights
A3: =FORMQTR&", "&VALUE(CV) ->  | C3: MANUALLY UPDATE CELL REFERENCES FOR QTR COLUMNS!!
E4: =CQ&"' "&RIGHT(CV,2) ->  | G4: =CQ&"' "&RIGHT(PV,2) ->  | I4: =CY&"' "&RIGHT(CV,2) ->  | K4: =CY&"' "&RIGHT(PV,2) -> 
B5: Page #'s | E5: Variance | G5: Variance | I5: Variance | K5: Variance
A6: SEGMENT INCOME:
A7: Property and Casualty
A8: Personal Lines | B8: 1 | C8: 19, 15Q1 | E8: =+#REF!-'21'!P13 ->  | G8: =+#REF!-'21'!#REF! ->  | I8: =+#REF!-SUM('21'!F13:Q13) ->  | K8: =+#REF!-SUM('21'!#REF!) -> 
A9: Commercial Lines | B9: 1 | C9: =+C8 -> 19, 15Q1 | E9: =+#REF!-'21'!P12 ->  | G9: =+#REF!-'21'!#REF! ->  | I9: =+#REF!-SUM('21'!F12:Q12) ->  | K9: =+#REF!-SUM('21'!#REF!) -> 
A10: Other | B10: 1 | C10: =+C8 -> 19, 15Q1 | E10: =+#REF!-'21'!P15 ->  | G10: =+#REF!-'21'!#REF! ->  | I10: =+#REF!-SUM('21'!F15:Q15) ->  | K10: =+#REF!-SUM('21'!#REF!) -> 
A11: Total Property and Casualty | B11: 1 | C11: =+C$8 -> 19, 15Q1 | E11: =+#REF!-'21'!P16 ->  | G11: =+#REF!-'21'!#REF! ->  | I11: =+#REF!-SUM('21'!F16:Q16) ->  | K11: =+#REF!-SUM('21'!#REF!) -> 
A12: Life Companies | B12: 1 | C12: =+C$8 -> 19, 15Q1 | E12: =+#REF!-'21'!#REF! ->  | G12: =+#REF!-'21'!#REF! ->  | I12: =+#REF!-SUM('21'!#REF!) ->  | K12: =+#REF!-SUM('21'!#REF!) -> 
A13: Corporate Debt | B13: 1 | C13: =+C$8 -> 19, 15Q1 | E13: =+#REF!-'21'!P18 ->  | G13: =+#REF!-'21'!#REF! ->  | I13: =+#REF!-SUM('21'!F18:Q18) ->  | K13: =+#REF!-SUM('21'!#REF!) -> 
A15: Total segment income before federal income taxes | B15: 1 | C15: =+C$8 -> 19, 15Q1 | E15: =+#REF!-'21'!P20 ->  | G15: =+#REF!-'21'!#REF! ->  | I15: =+#REF!-SUM('21'!F20:Q20) ->  | K15: =+#REF!-SUM('21'!#REF!) -> 
A17: Federal income tax (expense) benefit on segment income | B17: 1 | C17: =+C$8 -> 19, 15Q1 | E17: =+#REF!-'21'!P22 ->  | G17: =+#REF!-'21'!#REF! ->  | I17: =+#REF!-SUM('21'!F22:Q22) ->  | K17: =+#REF!-SUM('21'!#REF!) -> 
A18: Total segment income after federal income taxes | B18: 1 | C18: =+C$8 -> 19, 15Q1 | E18: =+#REF!-SUM('21'!P24) ->  | G18: =+#REF!-'21'!#REF! ->  | I18: =+#REF!-SUM('21'!F24:Q24) ->  | K18: =+#REF!-SUM('21'!#REF!) -> 
A19: Change in prior years tax reserves | B19: 1 | C19: =+C$8 -> 19, 15Q1 | E19: =+#REF!-'21'!#REF! ->  | G19: =+#REF!-'21'!#REF! ->  | I19: =+#REF!-SUM('21'!#REF!) ->  | K19: =+#REF!-SUM('21'!#REF!) -> 
A20: Net realized investment gains (losses), net of amortization and taxes | B20: 1 | C20: =+C$8 -> 19, 15Q1 | E20: =+#REF!-'21'!P25 ->  | G20: =+#REF!-'21'!#REF! ->  | I20: =+#REF!-SUM('21'!F25:Q25) ->  | K20: =+#REF!-SUM('21'!#REF!) -> 
A21: (Losses) gains from retirement of funding agreements and trust
A22: instruments supported by funding obligations, net of taxes | B22: 1 | C22: =+C$8 -> 19, 15Q1 | E22: =SUM(#REF!)-SUM('21'!#REF!) ->  | G22: =+#REF!-'21'!#REF! ->  | I22: =+#REF!-SUM('21'!#REF!) ->  | K22: =+#REF!-SUM('21'!#REF!) -> 
A23: Restructuring costs, net of taxes | B23: 1 | C23: 19, 15Q1 | E23: =+#REF!-'21'!#REF! ->  | G23: =+#REF!-'21'!#REF! ->  | I23: =+#REF!-SUM('21'!#REF!) ->  | K23: =+#REF!-SUM('21'!#REF!) -> 
A24: Federal income tax expense on non-segment income | B24: 1 | C24: 19, 15Q1 | E24: =+#REF!-'21'!P32 ->  | G24: =+#REF!-'21'!#REF! ->  | I24: =+#REF!-SUM('21'!F32:Q32) ->  | K24: =+#REF!-SUM('21'!#REF!) -> 
A25: Income from continuing operations, net of taxes | B25: 1 | C25: 19, 15Q1 | E25: =+#REF!-'21'!P33 ->  | G25: =+#REF!-'21'!#REF! ->  | I25: =+#REF!-SUM('21'!F33:Q33) ->  | K25: =+#REF!-SUM('21'!#REF!) -> 
A27: Income from discontinued variable life insurance and
A28: annuity business, net of taxes | B28: 1 | C28: 19, 15Q1 | E28: =+#REF!-'21'!#REF! ->  | G28: =+#REF!-'21'!#REF! ->  | I28: =+#REF!-SUM('21'!#REF!) ->  | K28: =+#REF!-SUM('21'!#REF!) -> 
A29: (Loss) income from operations of discontiued FAFLIC | B29: 1 | C29: 19, 15Q1 | E29: =#REF!-'21'!#REF! ->  | G29: =#REF!-'21'!#REF! ->  | I29: =#REF!-'21'!#REF!-'21'!#REF! ->  | K29: =#REF!-'21'!#REF!-'21'!#REF! -> 
A30: Income from operations of AMGRO | B30: 1 | C30: 19, 15Q1 | E30: =#REF!-'21'!#REF! ->  | G30: =#REF!-'21'!#REF! ->  | I30: =#REF!-'21'!#REF!-'21'!#REF! ->  | K30: =#REF!-'21'!#REF!-'21'!#REF! ->  | M30: Amgro sale
A31: Loss on disposal of variable life insurance and annuity
A32: business, net of taxes | B32: 1 | C32: 19, 15Q1 | E32: =+#REF!-'21'!#REF! ->  | G32: =+#REF!-'21'!#REF! ->  | I32: =+#REF!-SUM('21'!#REF!) ->  | K32: =+#REF!-SUM('21'!#REF!) -> 
A33: Other | B33: 1 | C33: 19, 15Q1 | E33: =+#REF!-'21'!#REF! ->  | G33: =+#REF!-'21'!#REF! ->  | I33: =+#REF!-SUM('21'!#REF!) ->  | K33: =+#REF!-SUM('21'!#REF!) -> 
A34: Income before cumulative effect of accounting change | B34: 1 | C34: 19, 15Q1 | E34: =+#REF!-'21'!#REF! ->  | G34: =+#REF!-'21'!#REF! ->  | I34: =+#REF!-SUM('21'!#REF!) ->  | K34: =+#REF!-SUM('21'!#REF!) -> 
A35: Cumulative effect of change in accounting
A36: principle, net of taxes | B36: 1 | C36: 19, 15Q1 | E36: =SUM(#REF!)-SUM('21'!#REF!) ->  | G36: =+#REF!-'21'!#REF! ->  | I36: =+#REF!-SUM('21'!#REF!-'21'!#REF!) ->  | K36: =+#REF!-SUM('21'!#REF!) -> 
A37: Net income | B37: 1 | C37: 19, 15Q1 | E37: =+#REF!-'21'!P36 ->  | G37: =+#REF!-'21'!#REF! ->  | I37: =+#REF!-SUM('21'!F36:Q36) ->  | K37: =+#REF!-SUM('21'!#REF!) -> 
A39: PER SHARE DATA (DILUTED)
A40: INCOME (LOSS) FROM CONTINUING OPERATIONS | B40: 2 | C40: =+C$8 -> 19, 15Q1 | E40: =+#REF!-'21'!#REF! ->  | G40: =+#REF!-'21'!#REF! ->  | I40: n/a | K40: n/a
A41: (LOSS) INCOME FROM DISCONTINUED OPERATIONS,
A42: NET OF TAXES | B42: 2 | C42: =+C$8 -> 19, 15Q1 | E42: =+#REF!+#REF!-'21'!#REF! ->  | G42: =+#REF!+#REF!-'21'!#REF! ->  | I42: n/a | K42: n/a
A43: NET INCOME (LOSS) | B43: 2 | C43: =+C$8 -> 19, 15Q1 | E43: =+#REF!-'21'!#REF! ->  | G43: =+#REF!-'21'!#REF! ->  | I43: n/a | K43: n/a
A45: WEIGHTED AVERAGE SHARES
A46: OUTSTANDING (DILUTED) | B46: 5 | C46: =+C$8 -> 19, 15Q1 | E46: =+#REF!-'21'!#REF! ->  | G46: =+#REF!-'21'!#REF! ->  | I46: n/a | K46: n/a
A48: BALANCE SHEET: | E48: =CQ&"' "&RIGHT(CV,2) ->  | G48: PY End
A49: Total investments | B49: 6 | C49: =+C$8 -> 19, 15Q1 | E49: =+'4'!C13-'21'!#REF! ->  | G49: =+'4'!E13-'21'!#REF! ->  | I49: n/a | K49: n/a
A50: Separate account assets | B50: 6 | C50: =+C$8 -> 19, 15Q1 | E50: =+'4'!#REF!-'21'!#REF! ->  | G50: =+'4'!#REF!-'21'!#REF! ->  | I50: n/a | K50: n/a
A51: Total assets | B51: 6 | C51: =+C$8 -> 19, 15Q1 | E51: =+'4'!C23-'21'!#REF! ->  | G51: =+'4'!E23-'21'!#REF! ->  | I51: n/a | K51: n/a
A52: Total shareholders' equity | B52: 6 | C52: =+C$8 -> 19, 15Q1 | E52: =+'4'!C45-'21'!#REF! ->  | G52: =+'4'!E45-'21'!#REF! ->  | I52: n/a | K52: n/a
A53: Book value per share | B53: 3 | C53: =+C$8 -> 19, 15Q1 | E53: =SUM(#REF!)-SUM('21'!#REF!) ->  | G53: =+#REF!-'21'!#REF! ->  | I53: n/a | K53: n/a
A54: Book value per share, excluding accumulated
A55: other comprehensive income | B55: 3 | C55: =+C$8 -> 19, 15Q1 | E55: =SUM(#REF!)-SUM('21'!#REF!) ->  | G55: =+#REF!-'21'!#REF! ->  | I55: n/a | K55: n/a
A57: updated Q4-07 &06 columns, CP 12-14-07

Sheet Ver Doc 2.2 (hidden)
A2: Name of Spreadsheet | C2: Stat Supp Working File - Pages 3(P&L) and 4(BS), 5(P&C Segment Income)
C3: 12(Life Segment Income) are used for SEC External Reporting
A5: Drive & Directory Location | C5: Homcfaf1\vol5\Stat Supp\Year\Quarter
A7: Date Created; Most Recent Change Date | C7: 2001-04-20 | D7: 2006-03-30
A9: Version # | C9: 2.2
A11: Spreadsheet Owner; Contact Info | C11: Sandra Aramony; saramony@allmerica.com
A13: Total # of Users; # of Users outside Dept. | C13: 8; none
A15: Frequency of Change:
B16: Formula/Calculations | C16: quarterly
B17: Input/Data Changes | C17: quarterly
A19: Purpose of model logic/formulas: | C19: Summarizes financial information from the general ledger and formats
C20: it for the Statistical Supplement. Also used to produce the Balance Sheet
C21: P&L and other financial statement disclosures
A23: Operating instructions for use/input: | C23: The pages are updated through an Essbase retrieve program. Use "Run" tab to
C24: select pages for which you want to retrieve information by entering "y" in the Run cell.
C25: After retrieve, compare information to Product Reports, Production Reports. Enter
C26: rounding in the shaded columns to the right of the page, if necessary.
C27: All manual input of information is entered on Input, Calc, or Footnote tabs. There is no manual
C28: input on actual stat supp pages.
C29: Use Proof tabs to check balancing.
A31: Historical/Standing data | C31: Prior Quarter\Prior Year
A33: Complex Functions or Links | C33: Macros are used to retrieve information from the ledger and to print the entire document.
A35: Input Integrity Checks | C35: Same as output integrity checks below
A37: Output Integrity Checks | C37: Reviewed by 2 individuals; beginning balances agreed to prior period analysis;
C38: data agreed to the general ledger; manual recalculations performed on a test basis
A40: Cell & Formula Protection | C40: None
A42: Access Protection | C42: Access restricted to Afgaap on Homcfaf1\Vol 5

Sheet Ver Doc 2.1 (hidden)
A2: Name of Spreadsheet | C2: Stat Supp Working File - Pages 3(P&L) and 4(BS), 5(P&C Segment Income)
C3: 12(Life Segment Income) are used for SEC External Reporting
A5: Drive & Directory Location | C5: Homcfaf1\vol5\Stat Supp\Year\Quarter
A7: Date Created; Most Recent Change Date | C7: 2001-04-20 | D7: 2005-12-30
A9: Version # | C9: 2.1
A11: Spreadsheet Owner; Contact Info | C11: Sandra Aramony; saramony@allmerica.com
A13: Total # of Users; # of Users outside Dept. | C13: 8; none
A15: Frequency of Change:
B16: Formula/Calculations | C16: quarterly
B17: Input/Data Changes | C17: quarterly
A19: Purpose of model logic/formulas: | C19: Summarizes financial information from the general ledger and formats
C20: it for the Statistical Supplement. Also used to produce the Balance Sheet
C21: P&L and other financial statement disclosures
A23: Operating instructions for use/input: | C23: The pages are updated through an Essbase retrieve program. Use "Run" tab to
C24: select pages for which you want to retrieve information by entering "y" in the Run cell.
C25: After retrieve, compare information to Product Reports, Production Reports. Enter
C26: rounding in the shaded columns to the right of the page, if necessary.
C27: All manual input of information is entered on Input, Calc, or Footnote tabs. There is no manual
C28: input on actual stat supp pages.
C29: Use Proof tabs to check balancing.
A31: Historical/Standing data | C31: Prior Quarter\Prior Year
A33: Complex Functions or Links | C33: Macros are used to retrieve information from the ledger and to print the entire document.
A35: Input Integrity Checks | C35: Same as output integrity checks below
A37: Output Integrity Checks | C37: Reviewed by 2 individuals; beginning balances agreed to prior period analysis;
C38: data agreed to the general ledger; manual recalculations performed on a test basis
A40: Cell & Formula Protection | C40: None
A42: Access Protection | C42: Access restricted to Afgaap on Homcfaf1\Vol 5

Sheet Ver Doc 2.0 (hidden)
A2: Name of Spreadsheet | C2: Stat Supp Working File - Pages 3(P&L) and 4(BS), 5(P&C Segment Income)
C3: 12(Life Segment Income) are used for SEC External Reporting
A5: Drive & Directory Location | C5: Homcfaf1\vol5\Stat Supp\Year\Quarter
A7: Date Created; Most Recent Change Date | C7: 2001-04-20 | D7: 2005-01-19
A9: Version # | C9: 2
A11: Spreadsheet Owner; Contact Info | C11: Sandra Aramony; saramony@allmerica.com
A13: Total # of Users; # of Users outside Dept. | C13: 8; none
A15: Frequency of Change:
B16: Formula/Calculations | C16: quarterly
B17: Input/Data Changes | C17: quarterly
A19: Purpose of model logic/formulas: | C19: Summarizes financial information from the general ledger and formats
C20: it for the Statistical Supplement. Also used to produce the Balance Sheet
C21: P&L and other financial statement disclosures
A23: Operating instructions for use/input: | C23: The pages are updated through an Essbase retrieve program. Use "Run" tab to
C24: select pages for which you want to retrieve information by entering "y" in the Run cell.
C25: After retrieve, compare information to Product Reports, Production Reports. Enter
C26: rounding in the shaded columns to the right of the page, if necessary.
C27: All manual input of information is entered on Input, Calc, or Footnote tabs. There is no manual
C28: input on actual stat supp pages.
C29: Use Proof tabs to check balancing.
A31: Historical/Standing data | C31: Prior Quarter\Prior Year
A33: Complex Functions or Links | C33: Macros are used to retrieve information from the ledger and to print the entire document.
A35: Input Integrity Checks | C35: Same as output integrity checks below
A37: Output Integrity Checks | C37: Reviewed by 2 individuals; beginning balances agreed to prior period analysis;
C38: data agreed to the general ledger; manual recalculations performed on a test basis
A40: Cell & Formula Protection | C40: None
A42: Access Protection | C42: Access restricted to Afgaap on Homcfaf1\Vol 5

Sheet Ver Doc 1.0 (hidden)
A2: Name of Spreadsheet | C2: Stat Supp Working File - Pages 3(P&L) and 4(BS), 5(P&C Segment Income)
C3: 12(Life Segment Income) are used for SEC External Reporting
A5: Drive & Directory Location | C5: Homcfaf1\vol5\Stat Supp\Year\Quarter
A7: Date Created; Most Recent Change Date | C7: 2001-04-20
A9: Version # | C9: 1
A11: Spreadsheet Owner; Contact Info | C11: Sandra Aramony; saramony@allmerica.com
A13: Total # of Users; # of Users outside Dept. | C13: 8; none
A15: Frequency of Change:
B16: Formula/Calculations | C16: quarterly
B17: Input/Data Changes | C17: quarterly
A19: Purpose of model logic/formulas: | C19: Summarizes financial information from the general ledger and formats
C20: it for the Statistical Supplement. Also used to produce the Balance Sheet
C21: P&L and other financial statement disclosures
A23: Operating instructions for use/input: | C23: The pages are updated through an Essbase retrieve program with limited
C24: manual manipulation of numbers.
A26: Historical/Standing data | C26: Prior Quarter\Prior Year
A28: Complex Functions or Links | C28: Macros are used to retrieve information from the ledger
A30: Input Integrity Checks | C30: Same as output integrity checks below
A32: Output Integrity Checks | C32: Reviewed by 2 individuals; beginning balances agreed to prior period analysis;
C33: data agreed to the general ledger; manual recalculations performed on a test basis
A35: Cell & Formula Protection | C35: None
A37: Access Protection | C37: Access restricted to Afgaap on Homcfaf1\Vol 5

Sheet Ver Doc (hidden)
A2: Name of Spreadsheet | C2: Stat Supp Working File - Pages 3(P&L) and 4(BS), 5(P&C Segment Income)
C3: 12(Life Segment Income) are used for SEC External Reporting
A5: Drive & Directory Location | C5: Homcfaf1\vol5\Stat Supp\Year\Quarter
A7: Date Created; Most Recent Change Date | C7: 2001-04-20
A9: Version # | C9: 1.0
A11: Spreadsheet Owner; Contact Info | C11: Sandra Aramony; saramony@allmerica.com
A13: Total # of Users; # of Users outside Dept. | C13: 8; none
A15: Frequency of Change:
B16: Formula/Calculations | C16: quarterly
B17: Input/Data Changes | C17: quarterly
A19: Purpose of model logic/formulas: | C19: Summarizes financial information from the general ledger and formats
C20: it for the Statistical Supplement. Also used to produce the Balance Sheet
C21: P&L and other financial statement disclosures
A23: Operating instructions for use/input: | C23: The pages are updated through an Essbase retrieve program with limited
C24: manual manipulation of numbers.
A26: Historical/Standing data | C26: Prior Quarter\Prior Year
A28: Complex Functions or Links | C28: Macros are used to retrieve information from the ledger
A30: Input Integrity Checks | C30: Same as output integrity checks below
A32: Output Integrity Checks | C32: Reviewed by 2 individuals; beginning balances agreed to prior period analysis;
C33: data agreed to the general ledger; manual recalculations performed on a test basis
A35: Cell & Formula Protection | C35: None
A37: Access Protection | C37: Access restricted to Afgaap on Homcfaf1\Vol 5
